Cogmind - Beta 16 @@@ ROGUE MODE // 2025.11.01 @ 08:25:14 Player: Naughtyusername Result: Self-destructed Performance ------------- Evolutions (9) 4500 Regions Visited (32) 6400 Robots Destroyed (357) 1785 Value Destroyed (20507) 20507 Prototype IDs (162) 3240 Alien Tech Used (7) 1400 Bonus (31273) 31273 TOTAL SCORE: 69105 Bonus ------- Triggered High Security 1000 High Alert Combat Kills 8914 Follower Combat Kills 2883 Network Hubs Disabled 600 Registered with UFD 300 Met Optimus in HQ 500 Met Zhirov 300 Met Warlord at Base 500 MAIN.C Attacked Warlord 500 Warlord Defense Kills 1350 Built Enhanced Grunts 300 A7 Reached Mainframe 300 Met R17 at Cetus 500 Scanned by Researcher 500 Destroyed Superfortress 15000 Met Optimus at Protoforge 1000 Destroyed MAIN.C Guards 500 Friendly Fire -3674 Cogmind --------- Core Integrity 370/1600 Matter 217/300 Energy 52/100 System Corruption 10% Temperature Cool (0) Movement Core (50) Location -1/Command Parts ------- > --- POWER (3) -------- (None) > --- PROPULSION (8) --- (None) > --- UTILITY (11) ----- (None) > --- WEAPON (3) ------- (None) > --- INVENTORY (5) ---- Concept Chromion Battery (0) Concept RG22 Armor Concept Impact Drone Bay (6/6) Transdimensional Reconstructor Concept Rapid Grenade Launcher Peak State ------------ > --- POWER ------------ Experimental Antimatter Reactor Concept Zero-point Core Concept Zero-point Core > --- PROPULSION ------- Experimental Antigrav System Experimental Antigrav System Gravjet Array Concept Gyrokinetic System Concept Gyrokinetic System Concept Gyrokinetic System Concept Gyrokinetic System > --- UTILITY ---------- Concept Antigrav Storage Unit Experimental Active Sensor Suite Concept Melee Reflex Suite Concept Projectile Intercept Suite Concept Core Analysis Suite Femtoactuators Concept Phase Shift Module Centrium Heavy Armor Plating Experimental Force Field > --- WEAPON ----------- Concept Blasthammer Concept Deflector Sword Concept Deflector Sword > --- INVENTORY -------- Quantum Reactor Experimental Antimatter Reactor Experimental Antimatter Reactor Improved Antigrav System Gravjet Array Concept Chromion Battery Concept Core Analysis Suite Experimental Armor Integrity Analyzer Precision Energy Filter Precision Energy Filter Femtoactuators Centrium Light Armor Plating Medium Regenerative Plating Concept RG22 Armor Concept Antimissile System Concept Matter Streamer Concept Impact Drone Bay Concept Impact Drone Bay Transdimensional Reconstructor Concept Rapid Grenade Launcher Concept Tiamat Rocket Array Vortex Lance Experimental Jetlance Experimental Jetlance [Rating: 309] Favorites ----------- Power Quantum Reactor Engine Cooled Ion Engine Power Core Concept Zero-point Core Reactor Quantum Reactor Propulsion Combat Airjet Hover Unit Combat Airjet Utility Experimental Signal Interpreter Device Experimental Sensor Array Storage High-capacity Storage Unit Processor Experimental Signal Interpreter Hackware Advanced Hacking Suite Protection Centrium Medium Armor Plating Weapon Kinetic Spear Energy Gun Backup Laser I Energy Cannon Heavy Plasma Cannon Ballistic Gun Improved Assault Rifle Ballistic Cannon Antimatter Cannon Launcher Concept Rapid Grenade Launcher Special Weapon CPS Tube Impact Weapon Shock Maul Slashing Weapon Concept Deflector Sword Piercing Weapon Kinetic Spear Build | -11 -10 -10 -9 -9 -8 -8 -8 -8 -6 -6 -6 -6 -6 -5 -5 -5 -5 -5 -5 -4 -4 -4 -4 -4 -3 -3 -3 -2 -2 -2 -1 -1 ------- Run | Yrd Mat Min Mat Min Mat Sto Rec Scr Fac Ext Cet Arc Hub Fac Was Fac Upp Upp Zhi Pro Fac Upp Upp War Pro Res Qua Res Tes Frg Acc Com Slots Evolved 18 | . . . 2 . 2 . . . 4 . . . . 2 . . . . . . 2 . . . . 2 . 2 . . 2 . Power 2 | . . . . . . . . . . . . . . 1 . . . . . . . . . . . . . 1 . . . . Propulsion 6 | . . . 1 . 1 . . . 2 . . . . . . . . . . . 2 . . . . . . . . . . . Utility 9 | . . . 1 . 1 . . . 2 . . . . 1 . . . . . . . . . . . 2 . 1 . . 1 . Weapon 1 | . . . . . . . . . . . . . . . . . . . . . . . . . . . . . . . 1 . Parts Attached 258 | 3 2 3 5 3 2 12 . 2 19 10 9 . 9 9 1 7 . 4 1 . 6 . 2 14 5 9 6 2 16 78 6 13 Power 25 | . . . . . . 1 . . 1 1 2 . . 2 . . . . . . . . . 1 . . . . 2 12 . 3 Engine 1 | . . . . . . 1 . . . . . . . . . . . . . . . . . . . . . . . . . . Core 8 | . . . . . . . . . 1 1 . . . 1 . . . . . . . . . . . . . . . 5 . . Reactor 16 | . . . . . . . . . . . 2 . . 1 . . . . . . . . . 1 . . . . 2 7 . 3 Propulsion 52 | . 2 . 2 . . 2 . . 3 2 1 . 2 4 . 5 . . . . 4 . . 3 1 1 . 1 . 17 1 1 Treads . | . . . . . . . . . . . . . . . . . . . . . . . . . . . . . . . . . Leg . | . . . . . . . . . . . . . . . . . . . . . . . . . . . . . . . . . Wheel . | . . . . . . . . . . . . . . . . . . . . . . . . . . . . . . . . . Hover 52 | . 2 . 2 . . 2 . . 3 2 1 . 2 4 . 5 . . . . 4 . . 3 1 1 . 1 . 17 1 1 Flight . | . . . . . . . . . . . . . . . . . . . . . . . . . . . . . . . . . Utility 102 | . . 2 2 2 2 2 . 1 9 3 5 . 4 1 1 1 . 2 1 . 1 . 1 6 . 4 1 . 5 35 3 8 Device 41 | . . . . 1 . . . . 2 . 1 . . 1 1 1 . 2 . . . . 1 3 . 3 1 . 4 16 1 3 Storage 11 | . . . 1 . . . . 1 1 . 1 . 1 . . . . . 1 . . . . . . . . . . 5 . . Processor 29 | . . 2 . 1 1 2 . . 3 2 . . 1 . . . . . . . . . . 3 . 1 . . 1 8 1 3 Hackware 1 | . . . . . . . . . . . . . . . . . . . . . 1 . . . . . . . . . . . Protection 20 | . . . 1 . 1 . . . 3 1 3 . 2 . . . . . . . . . . . . . . . . 6 1 2 Artifact . | . . . . . . . . . . . . . . . . . . . . . . . . . . . . . . . . . Weapon 79 | 3 . 1 1 1 . 7 . 1 6 4 1 . 3 2 . 1 . 2 . . 1 . 1 4 4 4 5 1 9 14 2 1 Energy Gun 3 | 2 . . . . . . . 1 . . . . . . . . . . . . . . . . . . . . . . . . Energy Cannon 19 | . . . . . . . . . 2 . . . 2 1 . . . . . . . . . . . 2 3 1 6 2 . . Ballistic Gun 13 | 1 . . . 1 . 3 . . . 1 . . . . . . . . . . . . . 1 2 2 . . . 2 . . Ballistic Cannon 16 | . . . . . . . . . 2 3 . . 1 . . . . 2 . . . . . 2 2 . . . 1 3 . . Launcher 9 | . . . . . . 3 . . 1 . . . . . . . . . . . . . . . . . . . 1 3 1 . Special Weapon 5 | . . 1 1 . . 1 . . . . 1 . . . . . . . . . . . . 1 . . . . . . . . Impact Weapon 3 | . . . . . . . . . 1 . . . . 1 . . . . . . . . . . . . . . . . 1 . Slashing Weapon 5 | . . . . . . . . . . . . . . . . . . . . . 1 . . . . . . . 1 3 . . Piercing Weapon 6 | . . . . . . . . . . . . . . . . 1 . . . . . . 1 . . . 2 . . 1 . 1 Special Melee Weapon . | . . . . . . . . . . . . . . . . . . . . . . . . . . . . . . . . . Unidentified Prototypes 68 | . . . . 1 . 3 . . 4 . 5 . 4 1 1 1 . 1 2 . 1 . . 7 . 3 4 . 8 20 . 2 Corrupted Parts 1 | . . . . . . . . . . . . . . . . . . . . . . . . . . . . . . . 1 . System Corruption 8 | . . . . . . . . . . . . . . . . . . . . . . . . . . . . . . . 8 . Parts Lost 62 | . . 4 4 . 1 4 . . 4 . 1 . . . . . . 1 . . . 1 . . 1 . . . 5 17 1 18 Power 15 | . . . 1 . . 1 . . . . . . . . . . . . . . . 1 . . . . . . 1 5 . 6 Propulsion 18 | . . 2 3 . . . . . 3 . . . . . . . . . . . . . . . 1 . . . 3 3 . 3 Utility 21 | . . . . . . 1 . . 1 . . . . . . . . 1 . . . . . . . . . . 1 7 1 9 Weapon 8 | . . 2 . . 1 2 . . . . 1 . . . . . . . . . . . . . . . . . . 2 . . Highest Loss Streak 16 | . . 1 3 . 1 2 . . 2 . 1 . . . . . . 1 . . . 1 . . 1 . . . 2 4 1 16 To Critical Strikes . | . . . . . . . . . . . . . . . . . . . . . . . . . . . . . . . . . Average Backups 16 | 2 5 4 2 3 5 4 4 6 11 13 13 14 17 14 14 14 14 15 20 20 19 20 20 19 20 20 19 19 17 19 21 22 Power . | . 1 1 1 1 1 . 1 1 1 . . 1 1 . 1 1 1 1 1 1 . 1 1 1 1 1 1 1 . . 2 2 Propulsion . | . . . . . . . . . 1 . . 1 1 1 1 1 1 1 1 1 . . . . . . . . . 1 1 1 Utility 7 | . 1 2 . . 1 1 1 2 2 3 5 6 7 6 7 7 7 8 11 11 11 11 11 10 10 10 9 7 5 10 11 12 Weapon 4 | . 2 1 1 1 1 1 1 1 2 4 4 3 4 2 2 1 2 3 4 3 3 4 4 5 6 6 5 7 6 5 5 4 Tool/Special . | . . . . . . . . . . . . . . . . . . . . . . . . . . . . . . . . . Unused Backups 63 | . 1 . . 1 1 2 . 1 9 2 7 . . . . . . 1 2 . 2 . . 3 . 1 1 1 3 16 . 9 Power 5 | . 1 . . . . 1 . 1 2 . . . . . . . . . . . . . . . . . . . . . . . Propulsion 4 | . . . . . . . . . 1 . . . . . . . . . . . . . . . . . . . . 2 . 1 Utility 37 | . . . . 1 . . . . 4 2 5 . . . . . . . 2 . 2 . . 3 . . . . 3 9 . 6 Weapon 12 | . . . . . 1 1 . . 1 . 1 . . . . . . 1 . . . . . . . 1 . 1 . 4 . 1 Tool/Special 5 | . . . . . . . . . 1 . 1 . . . . . . . . . . . . . . . 1 . . 1 . 1 Average Slot Usage (%) 85 | . 29 38 66 19 31 79 100 100 83 85 85 86 81 82 88 89 94 93 94 94 93 93 89 90 88 89 89 85 86 82 87 86 Core 2 | . . . . . . . . . 3 6 . . . . 5 5 5 4 5 5 5 4 . . . . . . . 4 7 7 Reactor 4 | . . . . . . . . . . . 5 6 5 5 5 5 5 5 5 5 5 5 5 5 5 4 4 4 5 6 4 4 Hover 28 | . 15 10 16 . . 23 36 36 23 25 26 26 22 22 23 24 29 29 29 29 35 36 36 36 35 33 33 30 28 26 27 27 Device 9 | . . . . . . . . . 6 . 2 . . 4 5 6 10 11 17 17 11 10 9 11 12 13 19 20 22 15 15 14 Storage 4 | . . . 7 . . . . 3 6 6 6 6 6 5 5 5 5 5 5 5 5 5 5 5 5 4 4 4 4 4 4 3 Processor 16 | . . 14 13 8 13 24 27 27 20 26 29 26 24 17 17 17 17 17 17 17 15 15 15 15 15 18 15 13 11 12 12 11 Protection 4 | . . . 4 . 1 7 9 5 5 5 . 5 6 11 11 9 5 4 . . . . . . 2 4 2 4 4 4 4 6 Energy Cannon 1 | . . . . . . . . . 5 1 . . . 1 5 5 5 3 . . 2 . 1 2 1 3 5 4 3 1 . . Ballistic Gun 2 | . . . . 8 9 12 18 18 2 . . . . . . . . . . . . . . 1 6 . . . . . . . Ballistic Cannon 2 | . . . . . . . . . . 10 12 13 12 3 . . . 1 . . 5 8 6 3 . 2 . . . 1 . . Piercing Weapon 1 | . . . . . . . . . . . . . . . . 1 5 4 5 5 2 1 1 2 1 2 2 4 2 . . . Peak Build Rating 309 | 2 3 3 9 13 9 33 26 26 82 82 94 94 104 120 113 114 113 116 113 114 130 132 124 153 158 172 182 187 196 290 309 309 Average Rating 137 | 1 2 2 6 3 7 20 25 25 69 76 84 92 95 108 113 113 112 112 111 112 126 128 123 138 153 166 173 184 175 234 304 294 On Entrance 98 | . 1 3 2 1 6 8 26 26 26 82 74 94 92 96 113 113 109 113 111 113 114 130 124 122 152 151 166 172 187 141 287 309 Avg Prop Armor Cover (%) 13 | . 20 21 . . . . . . . . . . . . . . . . . . . . . . . . . . . 2 . . Naked Turns 73 | . . . 22 39 . . . . . . . . . . . . . . . . . . . . . . . . . . . 12 Heaviest Build 136 | 4 2 2 8 4 6 19 16 24 54 54 57 64 84 85 67 67 67 87 81 84 95 95 94 105 109 105 109 110 120 136 129 120 Greatest Support 132 | 3 3 3 18 3 3 26 26 26 66 66 69 69 74 74 68 76 76 76 76 76 105 105 105 108 108 107 122 111 112 132 130 130 Greatest Overweight (x) 2 | 1 . . . 1 1 . . . 1 . . . 1 1 . . . 1 1 1 1 . . . 1 . 1 . 1 2 1 . Average Overweight (x) . | . . . . . . . . . . . . . . . . . . . . . . . . . . . . . . . . . Largest Inventory Capacity 25 | 5 5 5 8 5 5 5 5 10 15 15 15 15 20 20 15 15 15 20 20 20 20 20 20 20 20 20 20 20 20 25 25 25 Average Capacity 17 | 5 5 5 7 5 5 5 5 6 13 15 15 15 19 15 15 15 15 16 20 20 20 20 20 20 20 20 20 20 17 21 25 24 Most Carried 25 | 5 5 5 5 5 5 5 5 10 15 15 15 15 20 17 15 15 15 20 20 20 20 20 20 20 20 20 20 20 20 25 25 25 Average Carried 17 | 2 4 4 2 3 4 4 4 6 12 14 14 15 19 15 15 14 15 16 19 20 19 19 19 19 19 19 19 19 17 20 22 23 Final Capacity 25 | 5 5 5 5 5 5 5 5 10 15 15 15 15 20 15 15 15 15 20 20 20 20 20 20 20 20 20 20 20 15 25 25 5 Final Carried 25 | 5 5 4 2 5 5 5 5 10 15 15 15 15 18 15 15 15 15 20 20 20 20 20 20 20 20 20 20 20 15 25 25 5 Class Distribution -------------------- 29% | Scout 19% | Scavenger-Scout 16% | Mutant 11% | Scavenger-Mutant 8% | Commander-Mutant Dominant Class ---------------- Mutant | -10/Materials Mutant | -10/Mines Mutant | -9/Materials Mutant | -9/Mines Mutant | -8/Materials Commander-Mutant | -8/Storage Mutant | -8/Recycling Mutant | -8/Scraptown Scout | -6/Factory Mutant | -6/Extension Commander-Scout | -6/Cetus Commander-Mutant | -6/Archives Commander-Mutant | -6/Hub_04(d) Scout | -5/Factory Scout | -5/Waste Scout | -5/Factory Scout | -5/Upper Caves Scout | -5/Upper Caves Scout | -5/Zhirov Scout | -4/Proximity Caves Scavenger-Scout | -4/Factory Scavenger-Scout | -4/Upper Caves Scout | -4/Upper Caves Scout | -4/Warlord Scavenger-Mutant | -3/Proximity Caves Scavenger-Scout | -3/Research Scientist-Ninja | -3/Quarantine Scavenger-Ninja | -2/Research Scientist-Mutant | -2/Testing Scavenger-Scout | -2/Protoforge Scavenger-Scout | -1/Access Scavenger-Scout | -1/Command Resources | -11 -10 -10 -9 -9 -8 -8 -8 -8 -6 -6 -6 -6 -6 -5 -5 -5 -5 -5 -5 -4 -4 -4 -4 -4 -3 -3 -3 -2 -2 -2 -1 -1 ----------- Run | Yrd Mat Min Mat Min Mat Sto Rec Scr Fac Ext Cet Arc Hub Fac Was Fac Upp Upp Zhi Pro Fac Upp Upp War Pro Res Qua Res Tes Frg Acc Com Matter Collected 17699 | 201 . 84 . 72 . 283 53 18 352 944 594 215 951 80 . 162 50 422 63 226 471 620 787 1239 1343 266 . 177 426 6666 540 394 Remotely 1812 | . . . . . . . . . . . . . . . . . . . . . . . . . . . . . . 1725 87 . Salvage Created 16727 | . . 101 104 . . 309 142 . 1297 671 143 174 842 18 . 207 83 249 457 187 388 501 272 711 2017 558 26 109 658 2917 2243 1343 Parts 578 | . . 14 3 . . 19 4 . 33 32 19 4 36 . . 12 4 6 5 5 7 11 6 30 79 19 2 4 38 105 48 33 Haulers Intercepted 17 | . . . . . . 2 . . 2 . . . 8 . . 2 . 1 . . 1 . . . . . . . . . 1 . Recyclers Shooed 2 | . . . 1 . . . . . 1 . . . . . . . . . . . . . . . . . . . . . . . Parts Field Recycled . | . . . . . . . . . . . . . . . . . . . . . . . . . . . . . . . . . Retrieved Matter . | . . . . . . . . . . . . . . . . . . . . . . . . . . . . . . . . . Parts Self-Destructed 108 | . . . . . . . . . . . . . . . . . . 6 3 2 . 5 10 . 82 . . . . . . . Prevented 1 | . . . . . . . . . . . . . . . . . . . . . . . 1 . . . . . . . . . Parts Restored 16 | . . . . . . . . . . . . . . . . . . . . . . . 1 . . . . . . 15 . . Broken 1 | . . . . . . . . . . . . . . . . . . . . . . . 1 . . . . . . . . . Faulty 15 | . . . . . . . . . . . . . . . . . . . . . . . . . . . . . . 15 . . Kills | -11 -10 -10 -9 -9 -8 -8 -8 -8 -6 -6 -6 -6 -6 -5 -5 -5 -5 -5 -5 -4 -4 -4 -4 -4 -3 -3 -3 -2 -2 -2 -1 -1 ------- Run | Yrd Mat Min Mat Min Mat Sto Rec Scr Fac Ext Cet Arc Hub Fac Was Fac Upp Upp Zhi Pro Fac Upp Upp War Pro Res Qua Res Tes Frg Acc Com Combat Hostiles Destroyed 251 | . . 3 2 . . 4 . . 12 16 3 2 7 . . . . 5 . . 6 12 2 12 19 6 . . 10 66 36 28 Melee 25 | . . . . . . . . . 5 1 . . . . . . . . . . . . . . . . . . 2 7 3 7 Guns 22 | . . 3 2 . . 2 . . . . . . . . . . . . . . . . . 1 14 . . . . . . . Cannons 103 | . . . . . . . . . 1 14 3 2 6 . . . . 5 . . 6 12 2 11 2 2 . . 7 30 . . AOE 64 | . . . . . . 2 . . 4 . . . . . . . . . . . . . . . 3 . . . 1 20 18 16 Classes Destroyed 28 | . . 3 1 . . 4 1 . 3 1 . . 1 . . . 1 . . . 1 . . 1 2 . . . . 7 2 . Worker 17 | . . 1 . . . 2 . . 3 . . . 5 . . . . . . . . . . . . . . . 3 . 1 2 Builder 15 | . . . . . . 1 . . 1 . . . 2 . . 1 . . . . . . . . 2 . . . 1 4 3 . Tunneler 5 | . . 2 . . . . . . 1 . . . 1 . . . . . . . . . . . . . . . . . 1 . Hauler 17 | . . . . . . 2 . . 2 . . . 8 . . 2 . 1 . . 1 . . . . . . . . . 1 . Recycler 12 | . . . . . . . 2 . 4 1 . . . . . . . . . . . . . . 2 . . 1 1 . 1 . Carrier 2 | . . . . . . . . . . . . . . . . . . . . . . . . . . . . . . 2 . . Mechanic 2 | . . . . . . . . . . . . . . . . . . . . . . . . 2 . . . . . . . . Operator 7 | . . . . . . . . . 1 2 . . 1 1 . 1 . . . . . . . . . . . . 1 . . . Drone 2 | . . . . . . . . . . . . . . . . . . . . . . . . . . . . . . 2 . . Watcher 19 | . . . . . . 1 . . 1 3 1 . 3 . . . . . . . 1 . . . 2 . 1 . . . 4 2 Swarmer 41 | . . 3 . . . 2 . . 4 3 . . 2 . . . . . . . . 3 . 4 4 . . . 6 . . 10 Cutter 7 | . . . . . . . . . . . . . . . . . . . . . . . . . . . . . . . 7 . Saboteur 4 | . . . . . . . . . . . . . . . . . . . . . . . . . 1 . . . . 2 1 . Grunt 72 | . . . 2 . . 1 . . 4 6 . . 1 . . . . 5 . . 3 4 . 7 6 3 . . 1 12 12 5 Brawler 6 | . . . . . . . . . . . . . . . . . . . . . 1 . . 1 . . . . . 2 2 . Duelist 3 | . . . . . . . . . . . . . . . . . . . . . . . . . 2 . . . . 1 . . Protector 3 | . . . . . . . . . . . . . 1 . . . . . . . . . . . 1 . . . . . . 1 Researcher 4 | . . . . . . . . . . . . . . . . . . . . . . . . . . . . . . 4 . . Sentry 30 | . . . . . . 1 . . . 5 . 2 1 . . . . . . . . 1 1 . 4 3 . . . 10 . 2 Hunter 16 | . . . . . . . . . 2 . . . . . . . . . . . . . 1 . 2 . . . . 2 7 2 Programmer 25 | . . . . . . . . . 2 1 . . 2 . . . . . . . 2 . . . . . . . 3 10 . 5 Heavy 1 | . . . . . . . . . . . . . . . . . . . . . . . . . . . . . . . 1 . Behemoth 1 | . . . . . . . . . . 1 . . . . . . . . . . . . . . . . . . . . . . Cetus Guard 3 | . . . . . . . . . . . 3 . . . . . . . . . . . . . . . . . . . . . M Guard 1 | . . . . . . . . . . . . . . . . . . . . . . . . . . . . . . . . 1 Decapitator 12 | . . . . . . . . . . . . . . . . . . . . . . . . . . . . . . 12 . . Immortal 4 | . . . . . . . . . . . . . . . . . . . . . . . . . . . . . . 4 . . Combat Programmer 2 | . . . . . . . . . . . . . . . . . . . . . . . . . . . . . . . . 2 Investigator 1 | . . . . . . . . . . . . . . . . . . . . . . . . . . . . . . . . 1 Striker 4 | . . . . . . . . . . . . . . . . . . . . . . . . . . . . . . . 4 . Executioner 4 | . . . . . . . . . . . . . . . . . . . . . . . . . . . . . . 2 2 . Alpha 7 2 | . . . . . . . . . . . . . . . . . . . . . . . . . . . . . . 2 . . V-Series 5 | . . . . . . . . . . . . . . . . . . . . . . . . . . . . . . 5 . . Decomposer 3 | . . . . . . . . . . . . . . . . . . . . . . 3 . . . . . . . . . . Packrat 3 | . . . . . . . . . . . . . . . . . . . . . . . 3 . . . . . . . . . Samaritan 5 | . . . . . . . . . . . . . . . . . 2 . . . . . . . 3 . . . . . . . Thug 4 | . . . . . . . . . . . . 2 . . . . . . . . . 1 . 1 . . . . . . . . Savage 3 | . . . . . . . . . . . . . . . . . . . . . . 3 . . . . . . . . . . Best Kill Streak 20 | . . 3 2 . . 3 1 . 7 3 3 1 7 1 . 1 . 2 . . 4 4 1 4 4 4 1 1 5 12 20 17 Combat Bots Only 17 | . . 3 2 . . 2 . . 4 3 2 1 2 . . . . 2 . . 4 4 1 4 4 4 . . 5 9 15 17 Max Kills in Single Turn 6 | . . 1 1 . . 2 1 . 3 1 1 1 6 1 . 1 1 1 . . 1 1 1 3 3 1 1 1 2 4 3 5 Gunslinging . | . . . . . . . . . . . . . . . . . . . . . . . . . . . . . . . . . Exploded 5 | . . . . . . 2 . . 3 . . . . . . . . . . . . . . . 3 . . . 1 3 3 5 Melee 1 | . . . . . . . . . 1 1 . . . . . . . . . . . . . . . . . . 1 1 1 1 Uniques/NPCs Destroyed 1 | . . . . . . . . . . . 1 . . . . . . . . . . . . . . . . . . . . . A7 (-6/Cetus) Combat | -11 -10 -10 -9 -9 -8 -8 -8 -8 -6 -6 -6 -6 -6 -5 -5 -5 -5 -5 -5 -4 -4 -4 -4 -4 -3 -3 -3 -2 -2 -2 -1 -1 -------- Run | Yrd Mat Min Mat Min Mat Sto Rec Scr Fac Ext Cet Arc Hub Fac Was Fac Upp Upp Zhi Pro Fac Upp Upp War Pro Res Qua Res Tes Frg Acc Com Hostile Shots Fired 1508 | . 3 28 48 4 14 69 . . 80 179 20 5 88 . . 2 2 14 . . 11 27 22 7 45 28 14 . 75 288 129 306 Missed 580 | . 1 6 15 . 6 28 . . 23 67 8 2 20 . . 1 2 3 . . 2 13 6 2 16 11 7 . 30 106 75 130 Intercepted 30 | . . . . . . . . . . . . . . . . . . . . . . . . . . . . . . 2 . 28 Deflected 11 | . . . . . . . . . . . . . . . . . . . . . . . . . . . . . . . 5 6 Hits 928 | . 2 22 33 4 8 41 . . 57 112 12 3 68 . . 1 . 11 . . 9 14 16 5 29 17 7 . 45 182 54 176 Melee 22 | . . . . . . 3 . . . . . . . . . . . . . . . . . . . . . . . 11 8 . Projectile 906 | . 2 22 33 4 8 38 . . 57 112 12 3 68 . . 1 . 11 . . 9 14 16 5 29 17 7 . 45 171 46 176 AOE 29 | . . . . . . . . . . . . . . . . . . . . . . . . . . . . . . 23 2 4 Critical Strikes 49 | . . 1 4 . 1 . . . . . 2 . 2 . . . . . . . . 1 1 . 1 1 . . . 20 6 9 Actively Blocked 1 | . . . 1 . . . . . . . . . . . . . . . . . . . . . . . . . . . . . Part Disruptions 1 | . . . . . . . . . . . . . . . . . . . . . . . . . . . . . . 1 . . Damage Taken 20530 | . 25 250 471 55 119 631 . . 982 887 298 70 1228 . . 45 . 226 . . 245 258 289 171 662 328 132 95 1067 6474 1592 3930 Core 3658 | . . 87 258 43 15 266 . . 162 66 13 . 198 . . . . . . . 21 47 46 . 98 45 . . 44 1019 261 969 Absorbed by Shields 2447 | . . . . . . . . . . 80 25 . . . . . . . . . . . . . . . . . . 623 505 1214 Redirected to Shielding 402 | . . . 17 . . 36 . . 67 . . . 104 . . . . 59 . . . . . . . . . . . 119 . . Ignored by Resistances 414 | . . . . . . . . . . . . . . . . . . . . . . . . . . 73 . . . 28 27 286 Regen/Repaired (Parts) 1748 | . . . . . . . . . . . . 56 169 . . . . . . . 706 . 7 . 138 50 74 23 78 250 45 152 Core Remaining (%) 64 | 100 . 65 . 24 . . . 48 . . . . 48 . . . . . . 100 . . . . 81 . 96 . . 17 . . Volleys Fired 1049 | . . 12 18 . . 24 7 . 67 52 35 11 57 3 . 28 21 35 . 6 33 45 21 72 168 23 40 . 53 200 13 5 Largest 2 | . . 2 2 . . 2 2 . 2 2 2 2 2 1 . 1 1 2 . 1 2 2 2 2 2 2 1 . 1 2 1 1 Hottest 280 | . . 100 60 . . 60 46 . 129 96 96 66 66 90 . 90 90 102 . 90 102 102 102 94 128 188 113 . 200 280 65 65 Shots Fired 1495 | . . 15 36 . . 45 16 . 74 103 70 22 114 3 . 28 21 54 . 6 51 86 37 140 219 38 40 . 53 206 13 5 Gun 302 | . . 12 36 . . 42 16 . 1 . . . . . . . . . . . . . . 10 177 . . . . 8 . . Cannon 1142 | . . . . . . . . . 70 103 69 22 114 3 . 28 21 53 . 6 51 86 37 127 34 38 40 . 53 187 . . Launcher 44 | . . . . . . 3 . . 3 . . . . . . . . 1 . . . . . . 8 . . . . 11 13 5 Special 7 | . . 3 . . . . . . . . 1 . . . . . . . . . . . . 3 . . . . . . . . Kinetic 985 | . . 3 . . . 26 16 . 7 103 69 22 114 2 . . . 38 . . 39 86 34 137 185 8 1 . . 95 . . Thermal 401 | . . 12 36 . . 16 . . 64 . . . . 1 . 28 21 15 . 6 12 . 3 . 26 . 39 . 47 75 . . Explosive 44 | . . . . . . 3 . . 3 . . . . . . . . 1 . . . . . . 8 . . . . 11 13 5 Electromagnetic 55 | . . . . . . . . . . . . . . . . . . . . . . . . . . 30 . . . 25 . . Entropic 6 | . . . . . . . . . . . . . . . . . . . . . . . . . . . . . 6 . . . Robot Hit Streak 31 | . . 3 12 . . 12 13 . 10 9 15 17 8 . . 2 . 12 . . 8 16 5 13 17 19 13 . 6 31 6 7 Robot Miss Streak 4 | . . 2 2 . . 3 1 . 3 2 4 3 3 . . . . 4 . . 2 1 2 3 3 2 2 . 2 4 1 1 Penetration Max 2 | . . . . . . . . . . 1 1 . . . . . . . . . . . . 1 2 . . . . 1 . . Secondary Targets . | . . . . . . . . . . . . . . . . . . . . . . . . . . . . . . . . . Capacitor 9 | . . . . . . . . . . . . . . . . . . . . . . . . . . . . . . 9 . . Shots Hit Robots 1062 | . . 8 26 . . 27 12 . 42 74 50 14 69 1 . 7 2 23 11 3 25 53 13 91 138 27 5 4 28 160 54 95 Core Hits 584 | . . 6 10 . . 16 3 . 14 34 20 9 40 . . 2 1 11 7 3 13 23 6 41 74 9 1 1 15 94 53 78 Critical Kills 11 | . . . . . . . . . 2 2 1 . . . . . . . . . . . . . 1 . . . . 4 . 1 Critical Parts Destroyed 39 | . . . . . . . . . 4 6 5 . . . . . . . . . . . . . 3 . . . . . 12 9 Critical Strikes 132 | . . . . . . . . . 6 13 7 1 2 . . 1 1 1 . . 6 10 2 4 7 1 . . 4 31 15 20 Meltdown 4 | . . . . . . . . . . . . . . . . . . . . . . . . . . . . . . 4 . . Destroy 21 | . . . . . . . . . . 10 6 . . . . . . . . . . . . . 5 . . . . . . . Blast 45 | . . . . . . . . . . 1 1 1 2 . . . . 1 . . 5 9 1 4 . . . . . 20 . . Corrupt 1 | . . . . . . . . . . . . . . . . . . . . . . . . . . 1 . . . . . . Smash 33 | . . . . . . . . . 6 2 . . . . . . . . . . . . . . . . . . . . 13 12 Sever 12 | . . . . . . . . . . . . . . . . . . . . . . . . . . . . . 1 3 2 6 Impale 9 | . . . . . . . . . . . . . . . . 1 1 . . . 1 1 1 . 2 . . . . . . 2 Sunder 7 | . . . . . . . . . . . . . . . . . . . . . . . . . . . . . 3 4 . . Melee Attacks 491 | . . . . . . . . . 39 18 . . . 8 . 8 2 3 11 12 3 3 15 . 20 4 2 8 24 60 100 151 Impact 212 | . . . . . . . . . 39 18 . . . 8 . 6 . . . . . . . . . . . . . . 68 73 Slashing 137 | . . . . . . . . . . . . . . . . . . . . . . . . . . . . . 17 28 28 64 Piercing 104 | . . . . . . . . . . . . . . . . 2 2 3 11 12 3 3 15 . 20 4 . 8 7 . . 14 Entropic 38 | . . . . . . . . . . . . . . . . . . . . . . . . . . . 2 . . 32 4 . Sneak Attacks 40 | . . . . . . . . . 8 1 . . . . . 3 2 1 . . 1 2 3 . 3 . . 2 5 3 2 4 Combat Hostiles 3 | . . . . . . . . . 1 . . . . . . . . . . . . . . . . . . . . 1 . 1 Follow-up Attacks 43 | . . . . . . . . . . . . . . . . . . . . . . . . . . . . . . 7 11 25 Martial Strikes 26 | . . . . . . . . . . . . . . . . . . . . . . . . . . . . . . 1 11 14 Damage Inflicted 72653 | . . 124 248 . . 610 182 . 2867 2729 1760 618 3611 77 . 491 187 834 896 258 1198 1966 509 3411 5423 928 241 266 1950 19578 9341 12350 Guns 4595 | . . 100 238 . . 376 182 . . . . . . . . . . . . . . . . 220 3444 . . . . 35 . . Cannons 28697 | . . . . . . . . . 412 2123 1760 618 2688 . . 31 . 712 . . 1087 1736 232 3191 254 928 155 . 802 11968 . . Explosions 18645 | . . . . . . 234 . . 412 . . . 923 . . . . . . . . . . . 485 . . . 76 4325 6110 6080 Melee 20682 | . . . . . . . . . 2043 606 . . . 77 . 460 187 122 896 258 111 230 277 . 1240 . 86 266 1072 3250 3231 6270 Ramming 10 | . . . 10 . . . . . . . . . . . . . . . . . . . . . . . . . . . . . Kinetic 25493 | . . 25 . . . 295 182 . 114 2123 1760 618 2688 . . . . 712 . . 1087 1736 232 3411 3599 46 . . . 6865 . . Thermal 8753 | . . 99 238 . . 81 . . 298 . . . . . . 31 . . . . . . . . 208 . 155 . 508 7135 . . Explosive 9547 | . . . . . . 234 . . 412 . . . . . . . . . . . . . . . 376 . . . . 1635 3274 3616 Electromagnetic 2498 | . . . . . . . . . . . . . 923 . . . . . . . . . . . . 882 . . . 693 . . Impact 14136 | . . . . . . . . . 2043 606 . . . 77 . 265 . . . . . . . . . . . . . . 5440 5705 Slashing 4688 | . . . . . . . . . . . . . . . . . . . . . . . . . . . . . 561 857 627 2643 Piercing 4679 | . . . . . . . . . . . . . . . . 195 187 122 896 258 111 230 277 . 1240 . . 266 511 . . 386 Entropic 2849 | . . . . . . . . . . . . . . . . . . . . . . . . . . . 86 . 370 2393 . . Highest Corruption 31 | . . . . . . 5 5 . 2 3 3 3 8 . . . . . . . . . . . . . . 1 4 31 8 10 Average Corruption 9 | . . . . . . 5 5 . 1 2 3 3 3 . . . . . . . . . . . . . . 1 1 19 8 8 Corruption Purged . | . . . . . . . . . . . . . . . . . . . . . . . . . . . . . . . . . Corruption Blocked . | . . . . . . . . . . . . . . . . . . . . . . . . . . . . . . . . . Effects 302 | . . . . . . 2 13 . 15 26 7 3 19 . . . . . . . . . . . . . . . 9 185 3 20 Message Errors 75 | . . . . . . . 2 . 4 9 . . 7 . . . . . . . . . . . . . . . 2 46 1 4 Matter Fused 60 | . . . . . . 1 2 . 5 4 . . 2 . . . . . . . . . . . . . . . 1 41 . 4 Heat Flow Errors 33 | . . . . . . . 1 . 3 5 1 1 2 . . . . . . . . . . . . . . . 1 18 . 1 Energy Discharges 31 | . . . . . . . 4 . 2 1 1 . 1 . . . . . . . . . . . . . . . . 18 2 2 Parts Rejected 12 | . . . . . . . . . . 1 . . . . . . . . . . . . . . . . . . 2 6 . 3 Parts Fused 4 | . . . . . . . . . . 1 . . . . . . . . . . . . . . . . . . . 3 . . Data Loss (minor) 35 | . . . . . . 1 1 . . 2 2 1 1 . . . . . . . . . . . . . . . 1 22 . 4 Data Loss (major) 15 | . . . . . . . 1 . 1 1 1 1 1 . . . . . . . . . . . . . . . 1 7 . 1 Misfires 6 | . . . . . . . 2 . . . 1 . 2 . . . . . . . . . . . . . . . . 1 . . Alerts 7 | . . . . . . . . . . 1 1 . 2 . . . . . . . . . . . . . . . 1 1 . 1 Misdirections 16 | . . . . . . . . . . . . . . . . . . . . . . . . . . . . . . 16 . . Weapon Failures 8 | . . . . . . . . . . 1 . . 1 . . . . . . . . . . . . . . . . 6 . . Overload Shots . | . . . . . . . . . . . . . . . . . . . . . . . . . . . . . . . . . Overflow Damage 7670 | . . . . . . 7 . . 610 109 58 . 194 67 . 196 116 . 80 . . 183 96 86 273 7 35 . 204 2014 1693 1642 Projectiles 1719 | . . . . . . . . . 8 1 58 . 151 . . . . . . . . 39 . 86 27 7 4 . 5 1293 25 15 Explosions 1179 | . . . . . . 7 . . 4 . . . 43 . . . . . . . . . . . 59 . . . . 255 373 438 Melee 4772 | . . . . . . . . . 598 108 . . . 67 . 196 116 . 80 . . 144 96 . 187 . 31 . 199 466 1295 1189 Knockbacks 142 | . . . 1 . . . . . 9 2 16 2 10 1 . 1 . . . . 6 2 1 6 2 . . . . 25 33 25 Impact 62 | . . . 1 . . . . . 7 . . . . 1 . 1 . . . . . . . . . . . . . . 28 24 Kinetic 67 | . . . . . . . . . . 2 14 1 9 . . . . . . . 6 2 1 6 1 . . . . 25 . . Secondary 13 | . . . . . . . . . 2 . 2 1 1 . . . . . . . . . . . 1 . . . . . 5 1 Self-Inflicted Damage 987 | . . . 5 . . 22 . . . . . . 96 . . . . . . . . . . . . . . . . 217 298 349 Shots 21 | . . . . . . 1 . . . . . . 1 . . . . . . . . . . . . . . . . 8 5 6 Rammed 3 | . . . 3 . . . . . . . . . . . . . . . . . . . . . . . . . . . . . Targets Rammed 3 | . . . 3 . . . . . . . . . . . . . . . . . . . . . . . . . . . . . Kicked . | . . . . . . . . . . . . . . . . . . . . . . . . . . . . . . . . . Crushed . | . . . . . . . . . . . . . . . . . . . . . . . . . . . . . . . . . Highest Temperature 328 | . . 25 43 . . 6 221 . 255 289 154 192 202 64 4 290 . . . . 287 . . . 328 227 7 . 78 211 26 260 Average Temperature 55 | . . 17 12 . . 3 118 . 68 77 57 58 31 8 2 63 . . . . 138 . . . 170 71 7 . 54 69 7 83 Received Heat Transfer 2621 | . 15 123 303 6 72 216 . . 222 261 . 9 258 . . 9 . 72 . . 9 42 27 9 430 93 24 . 27 203 13 178 Effects 5 | . . . . . . . . . . 1 . . . . . 3 . . . . . . . . . . . . . . . 1 Energy Bleed 2 | . . . . . . . . . . 1 . . . . . . . . . . . . . . . . . . . . . 1 Interference 3 | . . . . . . . . . . . . . . . . 3 . . . . . . . . . . . . . . . . Siege Activations . | . . . . . . . . . . . . . . . . . . . . . . . . . . . . . . . . . Martial Activations . | . . . . . . . . . . . . . . . . . . . . . . . . . . . . . . . . . Shielding Activations . | . . . . . . . . . . . . . . . . . . . . . . . . . . . . . . . . . Robots Disrupted . | . . . . . . . . . . . . . . . . . . . . . . . . . . . . . . . . . Combat Hostiles . | . . . . . . . . . . . . . . . . . . . . . . . . . . . . . . . . . Robots Corrupted 47 | . . . . . . . . . 8 2 . . 1 1 . 1 . . . . . . . . . 4 . . . 4 19 7 Combat Hostiles 32 | . . . . . . . . . 2 1 . . 1 . . . . . . . . . . . . 4 . . . 4 15 5 Parts Fried 90 | . . . . . . . . . 23 2 . . 13 . . 2 . . . . . . . . . 12 . . . 6 27 5 Impact Corruptions 115 | . . . . . . . . . 19 4 . . . 3 . 1 . . . . . . . . . . . . . . 47 41 Robots Melted 6 | . . . . . . . . . . . . . . . . . . . . . . . . . . . . . . 6 . . Combat Hostiles 5 | . . . . . . . . . . . . . . . . . . . . . . . . . . . . . . 5 . . Parts Melted 11 | . . . 2 . . . . . 2 . . . . . . . . . . . . . . . . . . . 1 6 . . Heat Transferred 7310 | . . 272 962 . . 333 . . 333 . . . . . . 50 . . . . . . . . 310 . 148 . 352 4550 . . Parts Sabotaged 1 | . . . . . . . . . . . . . . . . . . . . . . . . . . . . . . 1 . . Parts Stolen . | . . . . . . . . . . . . . . . . . . . . . . . . . . . . . . . . . Parts Stripped . | . . . . . . . . . . . . . . . . . . . . . . . . . . . . . . . . . Power Chain Reactions . | . . . . . . . . . . . . . . . . . . . . . . . . . . . . . . . . . Alert | -11 -10 -10 -9 -9 -8 -8 -8 -8 -6 -6 -6 -6 -6 -5 -5 -5 -5 -5 -5 -4 -4 -4 -4 -4 -3 -3 -3 -2 -2 -2 -1 -1 ------- Run | Yrd Mat Min Mat Min Mat Sto Rec Scr Fac Ext Cet Arc Hub Fac Was Fac Upp Upp Zhi Pro Fac Upp Upp War Pro Res Qua Res Tes Frg Acc Com Maximum Alert Level 5 | . . . . . . 2 1 . 1 1 1 1 5 3 1 1 . . . . . . . . . 1 1 . 1 5 5 5 Low Security (%) 38 | 100 100 100 100 100 100 13 84 . 77 22 12 31 18 . . 93 . . . . 100 . . . . 50 52 100 32 12 . . Level 1 21 | . . . . . . 3 15 . 22 77 87 68 5 . 100 6 . . . . . . . . . 50 47 . 67 1 . . Level 2 6 | . . . . . . 82 . . . . . . 14 . . . . . . . . . . . . . . . . 8 . . Level 3 7 | . . . . . . . . . . . . . 6 100 . . . . . . . . . . . . . . . 17 . . Level 4 9 | . . . . . . . . . . . . . 27 . . . . . . . . . . . . . . . . 20 46 . Level 5 14 | . . . . . . . . . . . . . 26 . . . . . . . . . . . . . . . . 40 8 37 High Security 3 | . . . . . . . . . . . . . . . . . . . . . . . . . . . . . . . 45 62 Max Security . | . . . . . . . . . . . . . . . . . . . . . . . . . . . . . . . . . Peak Influence 3276 | . 70 60 109 30 . 639 243 . 310 345 345 262 1988 984 326 210 . . . . 92 . . . . 320 228 133 307 2105 2939 3276 Initial 1880 | . . 27 . 30 . . 223 . . 145 170 95 81 981 326 165 . . . . . . . . . 172 180 100 66 150 1272 1880 Average 688 | . 6 16 52 6 . 482 53 . 101 248 253 208 977 958 285 127 . . . . 29 . . . . 203 199 102 210 1258 1941 2614 Influence Increases 16442 | . 90 117 179 . . 1053 164 . 706 694 348 207 2482 101 . 239 120 195 15 5 310 295 265 310 771 358 237 108 736 2874 1817 1646 Destroy 0b10 Robot/C 6360 | . . 60 40 . . 460 . . 240 420 160 80 740 . . . . 100 . . 120 160 40 240 420 180 . . 200 1400 720 580 Destroy 0b10 Robot/NC 565 | . . 15 . . . 30 10 . 65 40 10 . 105 5 . 20 . 5 15 5 10 5 . 10 55 . 5 5 30 40 55 25 Destroy Leader 986 | . . 10 20 . . 126 . . 66 56 . . 204 . . 4 . . . . 24 10 . . 20 60 2 . 20 140 130 94 Allied During Kill 1570 | . . . . . . 287 . . . 76 153 80 836 . . . . . . . . . . . 96 36 . . . . . 6 Successful Hack 991 | . . . 29 . . 15 34 . 119 15 . . 43 78 . 124 . . . . 82 . . . . . 95 64 261 32 . . Select Force Hacks 120 | . . . . . . . 120 . . . . . . . . . . . . . . . . . . . . . . . . . Disable Machine 1170 | . . . . . . 30 . . 45 45 15 45 315 . . . . . . . 15 . . . . . 60 . 105 420 75 . Anti-Garrison Action 150 | . . . . . . . . . . . . . . . . . . . . . . . . . . . . . . 150 . . Destroy Structure 1750 | . . 2 . . . 30 . . 66 27 10 2 194 18 . 46 . . . . 44 . . . . 22 60 9 120 407 417 276 Partial Spotted 285 | . . . 15 . . 15 . . 30 15 . . 15 . . 15 . . . . 15 . . . . 15 15 30 . . 15 90 Lose Combat Pursuer 1695 | . 90 30 75 . . 60 . . 75 . . . 30 . . 30 120 90 . . . 120 225 60 180 45 . . . 285 105 75 Active Sensor Use 800 | . . . . . . . . . . . . . . . . . . . . . . . . . . . . . . . 300 500 Influence Decreases 13206 | . 20 187 100 79 . 480 737 . 408 687 415 213 711 1172 696 421 158 173 53 5 235 220 378 237 625 294 378 169 587 1021 998 1349 Entered New Map 5370 | . . 43 . 49 . . 350 . . 153 135 143 151 1022 606 71 21 4 38 . . 29 29 37 110 84 140 79 52 117 848 1059 Time Decay 6286 | . 20 114 60 30 . 220 159 . 378 474 230 50 440 150 90 350 137 159 15 5 235 181 349 200 425 130 238 90 380 727 140 110 Lost Part 580 | . . 30 40 . . 40 . . 30 . 10 . . . . . . 10 . . . 10 . . 10 . . . 50 160 10 180 Lost Ally 620 | . . . . . . 220 . . . 60 40 20 120 . . . . . . . . . . . 80 80 . . . . . . Purge Threat 350 | . . . . . . . 228 . . . . . . . . . . . . . . . . . . . . . 105 17 . . Squads Dispatched 115 | . 1 . . . . 3 . . 12 2 . . 13 2 . 5 . . . . 5 . 1 . 1 7 2 3 5 15 17 21 Investigation 32 | . . . . . . . . . 8 1 . . 1 . . 2 . . . . 2 . . . 1 3 1 . 1 4 3 5 Extermination 22 | . . . . . . . . . 3 . . . 2 1 . 2 . . . . 2 . . . . . 1 1 4 4 1 1 Reinforcement 25 | . 1 . . . . . . . 1 1 . . 8 1 . 1 . . . . 1 . . . . 1 . 2 . 4 3 1 Assault 33 | . . . . . . 3 . . . . . . 2 . . . . . . . . . 1 . . . . . . 3 10 14 Garrison 3 | . . . . . . . . . . . . . . . . . . . . . . . . . . 3 . . . . . . Intercept . | . . . . . . . . . . . . . . . . . . . . . . . . . . . . . . . . . Searches Triggered . | . . . . . . . . . . . . . . . . . . . . . . . . . . . . . . . . . Construction Impeded 2 | . . . . . . . . . . . . . 1 . . . . . . . . . . . . 1 . . . . . . Haulers Reinforced 7 | . . . . . . . . . 1 . . . 3 . . 1 . . . . . . . . . . . 1 . . 1 . Active Scanning Responses 8 | . . . . . . . . . . . . . . . . . . . . . . . . . . . . . . . 3 5 Cargo Convoy Interrupts . | . . . . . . . . . . . . . . . . . . . . . . . . . . . . . . . . . Stealth | -11 -10 -10 -9 -9 -8 -8 -8 -8 -6 -6 -6 -6 -6 -5 -5 -5 -5 -5 -5 -4 -4 -4 -4 -4 -3 -3 -3 -2 -2 -2 -1 -1 --------- Run | Yrd Mat Min Mat Min Mat Sto Rec Scr Fac Ext Cet Arc Hub Fac Was Fac Upp Upp Zhi Pro Fac Upp Upp War Pro Res Qua Res Tes Frg Acc Com Distress Signals 36 | . . . 1 . . 2 . . 3 1 1 . 5 . . . . . . . . . . 1 1 1 1 . . 14 2 3 Communications Jammed 5 | . . . . . . . . . . . . . . . . . . . . . . . . . . . 4 . 1 . . . Distress Signals 5 | . . . . . . . . . . . . . . . . . . . . . . . . . . . 4 . 1 . . . Times Spotted 569 | . 10 7 13 13 2 33 . . 20 18 9 4 45 1 6 6 5 11 . . 9 21 11 65 25 15 9 1 15 100 47 48 Peak Tracking Total 16 | . 6 3 8 11 3 11 . . 5 4 5 1 15 1 6 2 4 5 . . 4 7 9 9 5 5 7 1 5 16 9 13 Tactical Retreats 54 | . 2 1 2 2 . 2 . . 5 . . . 1 . . 2 2 2 . . . 4 5 2 5 2 . . . 9 3 3 Traps | -11 -10 -10 -9 -9 -8 -8 -8 -8 -6 -6 -6 -6 -6 -5 -5 -5 -5 -5 -5 -4 -4 -4 -4 -4 -3 -3 -3 -2 -2 -2 -1 -1 ------- Run | Yrd Mat Min Mat Min Mat Sto Rec Scr Fac Ext Cet Arc Hub Fac Was Fac Upp Upp Zhi Pro Fac Upp Upp War Pro Res Qua Res Tes Frg Acc Com Traps Triggered 32 | . . . . . . 1 . . . 1 . . 3 1 . 1 . . . . 1 . . . . . . 2 . 19 2 1 Indirectly . | . . . . . . . . . . . . . . . . . . . . . . . . . . . . . . . . . Trap Hack Attempts . | . . . . . . . . . . . . . . . . . . . . . . . . . . . . . . . . . Triggered . | . . . . . . . . . . . . . . . . . . . . . . . . . . . . . . . . . Disarmed . | . . . . . . . . . . . . . . . . . . . . . . . . . . . . . . . . . Reprogrammed . | . . . . . . . . . . . . . . . . . . . . . . . . . . . . . . . . . Reused . | . . . . . . . . . . . . . . . . . . . . . . . . . . . . . . . . . Traps Extracted . | . . . . . . . . . . . . . . . . . . . . . . . . . . . . . . . . . Installed . | . . . . . . . . . . . . . . . . . . . . . . . . . . . . . . . . . Triggered . | . . . . . . . . . . . . . . . . . . . . . . . . . . . . . . . . . Machines | -11 -10 -10 -9 -9 -8 -8 -8 -8 -6 -6 -6 -6 -6 -5 -5 -5 -5 -5 -5 -4 -4 -4 -4 -4 -3 -3 -3 -2 -2 -2 -1 -1 ---------- Run | Yrd Mat Min Mat Min Mat Sto Rec Scr Fac Ext Cet Arc Hub Fac Was Fac Upp Upp Zhi Pro Fac Upp Upp War Pro Res Qua Res Tes Frg Acc Com Machines Disabled 104 | . . . . . . 2 . . 3 4 1 3 21 . . . . . . . 1 . . 1 3 . 4 . 9 46 5 1 Max in Single Turn 8 | . . . . . . 1 . . 1 1 1 1 8 . . . . . . . 1 . . 1 1 . 1 . 1 4 1 1 Garrison Access 4 | . . . . . . 1 . . 1 . . . . . . . . . . . . . . . . . 1 . . 1 . . Network Hub 3 | . . . . . . . . . . . . . 3 . . . . . . . . . . . . . . . . . . . Machines Repaired . | . . . . . . . . . . . . . . . . . . . . . . . . . . . . . . . . . Machines Dismantled 6 | . . . . . . 1 . . . 1 1 . 2 . . . . . . . . . . 1 . . . . . . . . Machines Sabotaged . | . . . . . . . . . . . . . . . . . . . . . . . . . . . . . . . . . Overloaded Fab Kills . | . . . . . . . . . . . . . . . . . . . . . . . . . . . . . . . . . Hacking | -11 -10 -10 -9 -9 -8 -8 -8 -8 -6 -6 -6 -6 -6 -5 -5 -5 -5 -5 -5 -4 -4 -4 -4 -4 -3 -3 -3 -2 -2 -2 -1 -1 --------- Run | Yrd Mat Min Mat Min Mat Sto Rec Scr Fac Ext Cet Arc Hub Fac Was Fac Upp Upp Zhi Pro Fac Upp Upp War Pro Res Qua Res Tes Frg Acc Com Machines Accessed 161 | . 4 . 3 . 1 9 10 5 22 13 1 . 12 7 . 9 1 1 4 . 7 . 1 4 3 4 14 3 12 9 1 1 Terminals 96 | . 2 . 2 . . 7 6 . 13 13 1 . 12 3 . 5 . . . . 3 . . . 1 . 10 3 7 6 1 1 Fabricators 9 | . . . . . . . . . 1 . . . . 3 . 1 . . . . 1 . . . 1 . . . 2 . . . Repair Stations 5 | . . . 1 . . 1 . . . . . . . . . . . . . . 2 . . . . . 1 . . . . . Recycling Units 18 | . 2 . . . 1 . 4 . 4 . . . . . . 2 . . . . . . . . 1 1 . . . 3 . . Scanalyzers 11 | . . . . . . . . . 2 . . . . . . 1 . . . . 1 . . . . 2 2 . 3 . . . Garrison Access 6 | . . . . . . 1 . . 2 . . . . 1 . . . . . . . . . . . 1 1 . . . . . Total Hacks 590 | . 11 . 16 . 3 20 34 25 49 25 2 . 31 25 . 57 1 1 17 . 61 . 1 13 14 10 58 12 51 47 5 1 Successful 242 | . 2 . 9 . 1 9 21 25 14 12 . . 10 5 . 21 1 1 17 . 25 . 1 13 4 1 20 3 14 12 1 . Failed 346 | . 9 . 7 . 2 11 13 . 35 13 2 . 21 20 . 35 . . . . 35 . . . 10 9 38 9 37 35 4 1 Catastrophic 94 | . 1 . 2 . . 1 . . 9 3 . . 6 6 . 7 . . . . 7 . . . 2 4 7 4 17 15 3 . Database Lockouts 2 | . . . . . . . . . . . . . . . . 1 . . . . 1 . . . . . . . . . . . Manual 246 | . 3 . 8 . . 8 28 . 15 17 1 . 22 8 . 28 . . . . 13 . . . . 1 37 10 18 27 2 . Terminals 343 | . 5 . 13 . . 15 27 . 30 25 2 . 31 12 . 37 . . . . 16 . . . 1 . 44 12 36 31 5 1 Fabricators 39 | . . . . . . . . . 2 . . . . 11 . 6 . . . . 3 . . . 10 . . . 7 . . . Repair Stations 29 | . . . 3 . . 3 . . . . . . . . . . . . . . 19 . . . . . 4 . . . . . Recycling Units 51 | . 6 . . . 3 . 7 . 9 . . . . . . 6 . . . . . . . . 3 1 . . . 16 . . Scanalyzers 57 | . . . . . . . . . 5 . . . . . . 8 . . . . 23 . . . . 7 6 . 8 . . . Garrison Access 13 | . . . . . . 2 . . 3 . . . . 2 . . . . . . . . . . . 2 4 . . . . . Terminal Hacks 119 | . 1 . 4 . . 5 5 25 5 5 . . 2 1 . 8 1 1 17 . 4 . 1 13 1 . 3 1 6 9 1 . Record 39 | . . . . . . . . 24 . . . . . . . . . . 5 . . . . 8 . . . . 1 1 . . Part Schematic 7 | . . . 1 . . . . . . . . . 1 . . . . . 4 . 1 . . . . . . . . . . . Robot Analysis 5 | . . . . . . . 1 . . . . . . . . . . . 4 . . . . . . . . . . . . . Prototype ID Bank 15 | . 1 . 1 . . . 1 . . . . . . . . 1 . . 4 . . . . 4 . . 1 . 1 1 . . Open Door 13 | . . . . . . 3 . . 1 4 . . . . . . 1 1 . . . . 1 1 1 . . . . . . . Level Access Points 5 | . . . . . . . . . 1 . . . . 1 . 1 . . . . 1 . . . . . . . . 1 . . Branch Access Points 4 | . . . . . . . . . 1 . . . . . . 1 . . . . 1 . . . . . . 1 . . . . Terminal Index 6 | . . . . . . 1 . . 1 1 . . . . . 1 . . . . 1 . . . . . . . . 1 . . Recycling Unit Index 1 | . . . . . . . 1 . . . . . . . . . . . . . . . . . . . . . . . . . Scanalyzer Index 1 | . . . . . . . . . 1 . . . . . . . . . . . . . . . . . . . . . . . Alert Level 3 | . . . . . . . . . . . . . . . . . . . . . . . . . . . 1 . . 1 1 . Unreport Threat 4 | . . . . . . . 2 . . . . . . . . . . . . . . . . . . . . . 1 1 . . Locate Traps 2 | . . . . . . . . . . . . . . . . 1 . . . . . . . . . . . . . 1 . . Hauler Manifests 5 | . . . 1 . . 1 . . . . . . 1 . . 1 . . . . . . . . . . 1 . . . . . Registered Components 2 | . . . . . . . . . . . . . . . . 1 . . . . . . . . . . . . 1 . . . Registered Prototypes 2 | . . . . . . . . . . . . . . . . 1 . . . . . . . . . . . . 1 . . . Zone Layout 3 | . . . 1 . . . . . . . . . . . . . . . . . . . . . . . . . 1 1 . . Proto ID Catalog 2 | . . . . . . . . 1 . . . . . . . . . . . . . . . . . . . . . 1 . . Fabricator Hacks 8 | . . . . . . . . . 1 . . . . 2 . 3 . . . . . . . . 2 . . . . . . . Network Status 2 | . . . . . . . . . . . . . . 1 . 1 . . . . . . . . . . . . . . . . Load Schematic 2 | . . . . . . . . . . . . . . . . 1 . . . . . . . . 1 . . . . . . . Build 4 | . . . . . . . . . 1 . . . . 1 . 1 . . . . . . . . 1 . . . . . . . Repair Station Hacks 13 | . . . 2 . . 1 . . . . . . . . . . . . . . 10 . . . . . . . . . . . Scan Component 5 | . . . . . . . . . . . . . . . . . . . . . 5 . . . . . . . . . . . Repair 5 | . . . . . . . . . . . . . . . . . . . . . 5 . . . . . . . . . . . Refit 3 | . . . 2 . . 1 . . . . . . . . . . . . . . . . . . . . . . . . . . Recycling Unit Hacks 9 | . 1 . . . 1 . 2 . 2 . . . . . . 2 . . . . . . . . 1 . . . . . . . Retrieve Components 9 | . 1 . . . 1 . 2 . 2 . . . . . . 2 . . . . . . . . 1 . . . . . . . Scanalyzer 16 | . . . . . . . . . 3 . . . . . . 1 . . . . 6 . . . . . 5 . 1 . . . Insert Component 5 | . . . . . . . . . 1 . . . . . . . . . . . 4 . . . . . . . . . . . Analyze 2 | . . . . . . . . . 1 . . . . . . . . . . . 1 . . . . . . . . . . . Retrieve Study 9 | . . . . . . . . . 1 . . . . . . 1 . . . . 1 . . . . . 5 . 1 . . . Garrison Access Hacks 3 | . . . . . . 1 . . 1 . . . . . . . . . . . . . . . . . 1 . . . . . Seal Access 3 | . . . . . . 1 . . 1 . . . . . . . . . . . . . . . . . 1 . . . . . Unauthorized Hacks 74 | . . . 3 . . 2 14 . 2 7 . . 8 2 . 7 . . . . 5 . . . . 1 11 2 7 3 . . Terminals 62 | . . . 3 . . 2 10 . 2 7 . . 8 1 . 4 . . . . 4 . . . . . 10 2 7 2 . . Track 16 | . . . . . . . . . . 3 . . 4 . . 1 . . . . 1 . . . . . 2 1 3 1 . . Botnet 29 | . . . 2 . . 1 5 . 2 2 . . 3 1 . 2 . . . . 3 . . . . . 2 1 4 1 . . Disrupt 2 | . . . . . . . . . . 1 . . 1 . . . . . . . . . . . . . . . . . . . Operators 4 | . . . 1 . . 1 . . . 1 . . . . . 1 . . . . . . . . . . . . . . . . Skim 11 | . . . . . . . 5 . . . . . . . . . . . . . . . . . . . 6 . . . . . Fabricators 3 | . . . . . . . . . . . . . . 1 . 2 . . . . . . . . . . . . . . . . Prioritize 1 | . . . . . . . . . . . . . . . . 1 . . . . . . . . . . . . . . . . Haulers 2 | . . . . . . . . . . . . . . 1 . 1 . . . . . . . . . . . . . . . . Repair Stations 2 | . . . . . . . . . . . . . . . . . . . . . 1 . . . . . 1 . . . . . Patch 2 | . . . . . . . . . . . . . . . . . . . . . 1 . . . . . 1 . . . . . Recycling Units 7 | . . . . . . . 4 . . . . . . . . 1 . . . . . . . . . 1 . . . 1 . . Recyclers 1 | . . . . . . . . . . . . . . . . 1 . . . . . . . . . . . . . . . . Tunnel 4 | . . . . . . . 4 . . . . . . . . . . . . . . . . . . . . . . . . . Fedlink 2 | . . . . . . . . . . . . . . . . . . . . . . . . . . 1 . . . 1 . . Scanalyzers . | . . . . . . . . . . . . . . . . . . . . . . . . . . . . . . . . . Garrison Access . | . . . . . . . . . . . . . . . . . . . . . . . . . . . . . . . . . Data Cores Recovered 4 | . . . . . . . . . 1 1 . . . . . 1 . . . . . . . . . . . . 1 . . . Used 3 | . . . . . . . . . . 1 . . . . . 1 . . . . . . . . . . . . 1 . . . Hacking Detections 119 | . 4 . 2 . . 6 6 . 20 10 1 . 12 7 . 8 . . . . 6 . . . 1 3 11 3 11 7 1 . Full Trace Events 17 | . . . . . . 1 1 . 7 . . . . . . 2 . . . . 1 . . . 1 1 . . 1 2 . . Feedback Events . | . . . . . . . . . . . . . . . . . . . . . . . . . . . . . . . . . Feedback Blocked . | . . . . . . . . . . . . . . . . . . . . . . . . . . . . . . . . . Robot Schematics Acquired 2 | . . . . . . . . . . . . . . . . . . . . . . . . . . . . . . 2 . . Robots Built . | . . . . . . . . . . . . . . . . . . . . . . . . . . . . . . . . . Authchips . | . . . . . . . . . . . . . . . . . . . . . . . . . . . . . . . . . Time . | . . . . . . . . . . . . . . . . . . . . . . . . . . . . . . . . . Total Robot Build Rating . | . . . . . . . . . . . . . . . . . . . . . . . . . . . . . . . . . Part Schematics Acquired 21 | . . . 1 . . . . . 1 . . . 1 . . . . . 4 . 2 . . . . . . . . 12 . . Parts Built 7 | . . . . . . . . . 2 . . . . 2 . 2 . . . . . . . . 1 . . . . . . . Authchips . | . . . . . . . . . . . . . . . . . . . . . . . . . . . . . . . . . Time 164 | . . . . . . . . . 42 . . . . 39 . 47 . . . . . . . . 36 . . . . . . . Total Part Build Rating 43 | . . . . . . . . . 16 . . . . 14 . 10 . . . . . . . . 3 . . . . . . . Part Studies Acquired 8 | . . . . . . . . . 1 . . . . . . 1 . . . . 1 . . . . . 4 . 1 . . . Parts Repaired 5 | . . . . . . . . . . . . . . . . . . . . . 5 . . . . . . . . . . . Time 295 | . . . . . . . . . . . . . . . . . . . . . 295 . . . . . . . . . . . Parts Recycled . | . . . . . . . . . . . . . . . . . . . . . . . . . . . . . . . . . Recycled Matter . | . . . . . . . . . . . . . . . . . . . . . . . . . . . . . . . . . Retrieved Matter . | . . . . . . . . . . . . . . . . . . . . . . . . . . . . . . . . . Retrieved Components 16 | . 4 . . . 2 . 3 . 3 . . . . . . 1 . . . . . . . . 3 . . . . . . . Parts Scanalyzed 3 | . . . . . . . . . 1 . . . . . . . . . . . 2 . . . . . . . . . . . Part Schematics Acquired 2 | . . . . . . . . . 1 . . . . . . . . . . . 1 . . . . . . . . . . . Parts Damaged . | . . . . . . . . . . . . . . . . . . . . . . . . . . . . . . . . . Bothacking | -11 -10 -10 -9 -9 -8 -8 -8 -8 -6 -6 -6 -6 -6 -5 -5 -5 -5 -5 -5 -4 -4 -4 -4 -4 -3 -3 -3 -2 -2 -2 -1 -1 ------------ Run | Yrd Mat Min Mat Min Mat Sto Rec Scr Fac Ext Cet Arc Hub Fac Was Fac Upp Upp Zhi Pro Fac Upp Upp War Pro Res Qua Res Tes Frg Acc Com Used RIF Installer . | . . . . . . . . . . . . . . . . . . . . . . . . . . . . . . . . . Robots Hacked . | . . . . . . . . . . . . . . . . . . . . . . . . . . . . . . . . . Non-combat . | . . . . . . . . . . . . . . . . . . . . . . . . . . . . . . . . . Combat . | . . . . . . . . . . . . . . . . . . . . . . . . . . . . . . . . . Robot Hacks Applied . | . . . . . . . . . . . . . . . . . . . . . . . . . . . . . . . . . Relay Couplers Released 2 | . . . . . . . . . . . . . . . . . . . . . . . . . . . . . . 2 . . Machine Destruction 2 | . . . . . . . . . . . . . . . . . . . . . . . . . . . . . . 2 . . Fabnet Peak Effective % . | . . . . . . . . . . . . . . . . . . . . . . . . . . . . . . . . . Robots Rewired 17 | . . . . . . . . . . 6 . . . . . . . . . . . . . . 11 . . . . . . . Allies Hacked . | . . . . . . . . . . . . . . . . . . . . . . . . . . . . . . . . . Hacks Repelled . | . . . . . . . . . . . . . . . . . . . . . . . . . . . . . . . . . Allies | -11 -10 -10 -9 -9 -8 -8 -8 -8 -6 -6 -6 -6 -6 -5 -5 -5 -5 -5 -5 -4 -4 -4 -4 -4 -3 -3 -3 -2 -2 -2 -1 -1 -------- Run | Yrd Mat Min Mat Min Mat Sto Rec Scr Fac Ext Cet Arc Hub Fac Was Fac Upp Upp Zhi Pro Fac Upp Upp War Pro Res Qua Res Tes Frg Acc Com Total Allies 42 | . . . . . . 12 . . . 14 5 . . . . . . . . . . . . . 11 . . . . . . . Largest Group 13 | . . . . . . 10 . . . 10 13 11 8 . . . . . . . . . . . 11 5 . . . . . . Highest-Rated Group 828 | . . . . . . 173 . . . 404 828 649 556 . . . . . . . . . . . 438 304 . . . . . . Highest-Rated Ally 159 | . . . . . . 31 . . . 159 159 96 96 . . . . . . . . . . . 64 64 . . . . . . Total Orders 13 | . . . . . . . . . . . 1 . . . . . . . . . . . . . 10 1 . . . . . 1 STAY 9 | . . . . . . . . . . . 1 . . . . . . . . . . . . . 7 1 . . . . . . FOLLOW 3 | . . . . . . . . . . . . . . . . . . . . . . . . . 3 . . . . . . . RETURN 1 | . . . . . . . . . . . . . . . . . . . . . . . . . . . . . . . . 1 Ally Attacks 434 | . . . . . . 130 . . . 60 56 16 123 . . . . . . . . . . . 24 19 . . . . . 6 Total Damage 10176 | . . . . . . 1673 . . . 1144 1023 289 4018 . . . . . . . . . . . 1002 773 . . . . . 254 Kills 76 | . . . . . . 20 . . . 8 6 2 32 . . . . . . . . . . . 3 4 . . . . . 1 Allies Corrupted 2 | . . . . . . 1 . . . . . . 1 . . . . . . . . . . . . . . . . . . . Allies Melted 2 | . . . . . . 1 . . . . . . . . . . . . . . . . . . . 1 . . . . . . Intel | -11 -10 -10 -9 -9 -8 -8 -8 -8 -6 -6 -6 -6 -6 -5 -5 -5 -5 -5 -5 -4 -4 -4 -4 -4 -3 -3 -3 -2 -2 -2 -1 -1 ------- Run | Yrd Mat Min Mat Min Mat Sto Rec Scr Fac Ext Cet Arc Hub Fac Was Fac Upp Upp Zhi Pro Fac Upp Upp War Pro Res Qua Res Tes Frg Acc Com Active Infowar (turns) 21920 | . . . . 1 . 403 517 685 1367 1201 499 118 1092 300 180 782 683 1060 155 851 659 694 865 1110 1719 278 506 190 875 4044 518 568 Optics 19704 | . . . . . . 403 517 685 1367 1201 499 118 1092 300 180 782 683 1060 155 851 659 694 865 1110 1719 278 141 . 50 4044 251 . Sensors 10735 | . . . . 1 . . . . 1219 160 229 6 153 295 178 779 681 930 155 851 557 453 810 488 608 172 495 186 720 609 . . A.S.S. 3307 | . . . . . . . . . . . . . . . . . . . . . . . . . . . . . . 2221 518 568 Terrain 1206 | . . . . . . . . . . . . . . . . . . . . . . . . . . 202 506 190 308 . . . T.N.C. 1334 | . . . . . . 52 517 685 80 . . . . . . . . . . . . . . . . . . . . . . . Cloaking 2343 | . . . . . . . . . . . . . . . . . . . . . . . . 2 . . 364 190 631 1156 . . Jamming 2689 | . . . . . . . . . . . . . . . . . . . . . . . . . . . 198 190 744 1557 . . Robot Analysis Total 5 | . . . . . . . 1 . . . . . . . . . . . 4 . . . . . . . . . . . . . Derelict Logs Recovered 8 | . . 1 . 2 . . . . . . . . . . . . 1 1 . 2 . . 1 . . . . . . . . . Drone Launches 4 | . . . . . . . . . . . . . . . . . . . . . . . . . . . . . . . . 4 Drone Recoveries 4 | . . . . . . . . . . . . . . . . . . . . . . . . . . . . . . . . 4 Exploration | -11 -10 -10 -9 -9 -8 -8 -8 -8 -6 -6 -6 -6 -6 -5 -5 -5 -5 -5 -5 -4 -4 -4 -4 -4 -3 -3 -3 -2 -2 -2 -1 -1 ------------- Run | Yrd Mat Min Mat Min Mat Sto Rec Scr Fac Ext Cet Arc Hub Fac Was Fac Upp Upp Zhi Pro Fac Upp Upp War Pro Res Qua Res Tes Frg Acc Com Turns Passed 22898 | 37 125 289 138 181 102 482 517 685 1367 1201 499 118 1092 300 180 782 683 1060 155 851 659 694 865 1110 1719 278 506 190 886 4044 518 585 Spaces Moved 28377 | 43 240 467 114 309 117 541 538 1056 1729 1114 293 81 772 571 329 997 1008 1004 200 674 837 925 1077 1441 1934 370 853 368 1154 5442 764 1015 Core 1350 | 43 240 467 50 309 117 100 . . . . . . . . . . . . . . . . . . . . . . . . . 24 Treads . | . . . . . . . . . . . . . . . . . . . . . . . . . . . . . . . . . Legs . | . . . . . . . . . . . . . . . . . . . . . . . . . . . . . . . . . Wheels . | . . . . . . . . . . . . . . . . . . . . . . . . . . . . . . . . . Hover 27027 | . . . 64 . . 441 538 1056 1729 1114 293 81 772 571 329 997 1008 1004 200 674 837 925 1077 1441 1934 370 853 368 1154 5442 764 991 Flight . | . . . . . . . . . . . . . . . . . . . . . . . . . . . . . . . . . Fastest Speed 33 | 50 50 50 50 50 50 50 58 58 48 52 53 53 52 38 45 45 58 58 58 58 46 51 51 47 43 43 33 42 42 33 33 33 Average Speed 51 | 65 50 50 62 55 83 62 58 58 51 52 53 53 102 42 45 51 58 59 58 61 52 51 51 48 48 44 45 43 49 44 33 33 Slowest Speed 189 | 100 50 50 76 100 100 76 58 58 124 53 53 53 110 105 45 58 58 122 122 122 121 51 51 51 108 45 102 45 129 189 89 50 Overloaded Moves 28 | . . . . . . . . . . . . . . . . . . . . . . . . . . . 9 . 19 . . . Propulsion Burnouts . | . . . . . . . . . . . . . . . . . . . . . . . . . . . . . . . . . Robots Hopped . | . . . . . . . . . . . . . . . . . . . . . . . . . . . . . . . . . Potential Cave-ins 31 | . . . . . . . . . 2 . . . . . . 2 . . . . . . 5 . . . . . 2 16 2 2 Cave-ins Triggered 2 | . . . . . . . . . . . . . . . . . . . . . . . . . . . . . . 1 . 1 Teleports 2 | . . . . . . . . . . . . . . . . . . . . . . . . . . . . . . 2 . . Exploration Rate (%) 61 | 4 59 95 15 53 12 74 97 86 58 87 73 84 87 26 98 22 91 87 61 76 18 84 94 92 77 15 83 16 86 62 19 36 Regions Visited 32 Branch Regions 21 Pre-discovered Areas 12 | . . 1 . 1 . . 5 . . . . . . . . . . . 3 . . . 1 . . . 1 . . . . . Known Exits Taken 25 | . . . 1 . 1 . 1 1 1 1 1 1 1 . . 1 1 1 1 1 1 1 1 1 1 1 1 1 1 1 1 . Unknown Exits Taken 5 | 1 1 1 . 1 . 1 . . . . . . . . . . . . . . . . . . . . . . . . . . Scrap Searched 22 | . . 1 . 1 . . . 7 . . . . . . . . 3 2 . 1 . 1 3 . 3 . . . . . . . Spaces Dug 453 | . . 1 . . . 11 . . 36 3 . . 5 9 . 21 13 7 . 10 12 8 23 6 18 5 23 3 24 61 125 29 Terrain Destroyed 1316 | . . 2 . . . 28 . . 88 20 9 1 204 9 . 28 21 45 . 15 24 48 45 16 54 8 30 3 46 207 203 162 Melee 87 | . . . . . . . . . 5 1 . . . 6 . 1 . 1 . 9 . . 12 . . 2 . 3 5 9 20 13 Projectile 503 | . . 2 . . . . . . 55 19 9 1 32 3 . 27 21 32 . 6 24 48 33 16 47 6 30 . 33 59 . . AOE 726 | . . . . . . 28 . . 28 . . . 172 . . . . 12 . . . . . . 7 . . . 8 139 183 149 Terrain Rammed . | . . . . . . . . . . . . . . . . . . . . . . . . . . . . . . . . . Walls Destroyed . | . . . . . . . . . . . . . . . . . . . . . . . . . . . . . . . . . Machines Disabled . | . . . . . . . . . . . . . . . . . . . . . . . . . . . . . . . . . Actions | -11 -10 -10 -9 -9 -8 -8 -8 -8 -6 -6 -6 -6 -6 -5 -5 -5 -5 -5 -5 -4 -4 -4 -4 -4 -3 -3 -3 -2 -2 -2 -1 -1 --------- Run | Yrd Mat Min Mat Min Mat Sto Rec Scr Fac Ext Cet Arc Hub Fac Was Fac Upp Upp Zhi Pro Fac Upp Upp War Pro Res Qua Res Tes Frg Acc Com Total 34603 | 51 243 500 143 318 120 621 728 1128 2054 1565 551 133 942 606 359 1225 1079 1406 221 1086 999 1050 1325 1687 2449 436 928 381 1361 6733 974 1201 Wait 3314 | . . 14 . . . 18 181 61 146 290 168 41 49 . 28 176 47 332 . 391 95 65 192 108 195 13 2 . 57 513 95 37 Move 28344 | 42 239 466 113 308 116 540 537 1055 1728 1113 292 80 771 571 328 996 1007 1003 199 673 836 924 1076 1440 1933 369 852 367 1153 5439 763 1015 Hop . | . . . . . . . . . . . . . . . . . . . . . . . . . . . . . . . . . Pick Up 238 | 4 1 1 1 3 . 5 1 6 23 8 12 . 7 3 . 4 . 10 3 . 7 . 1 9 2 3 8 1 6 99 5 5 Fast Attach 140 | 2 2 3 1 3 2 6 . . 4 2 1 . 3 4 1 . . 1 1 . 5 . 1 10 4 1 3 . 9 63 4 4 Attach 114 | 1 . 1 3 1 . 4 . . 7 2 3 . 4 6 . 2 . 2 . . 1 1 . 3 . 1 1 1 5 51 5 9 Detach 58 | 2 . 1 1 2 1 . . . 3 . 2 . 4 . 1 . . . . . 1 1 . 2 . . 1 . 4 30 1 1 Swap 402 | . . . 2 . . 7 1 4 18 17 17 1 18 5 1 7 2 16 4 4 11 11 16 17 25 19 9 3 33 98 16 20 Drop 256 | . 1 2 1 1 1 5 1 2 19 9 13 . 8 6 . 4 . 4 3 . 7 . 3 18 5 3 10 1 17 108 . 4 Fire 1049 | . . 12 18 . . 24 7 . 67 52 35 11 57 3 . 28 21 35 . 6 33 45 21 72 168 23 40 . 53 200 13 5 Melee 395 | . . . . . . . . . 39 18 . . . 8 . 8 2 3 11 12 3 3 15 . 20 4 2 8 24 49 65 101 Ram 3 | . . . 3 . . . . . . . . . . . . . . . . . . . . . . . . . . . . . Kick . | . . . . . . . . . . . . . . . . . . . . . . . . . . . . . . . . . Crush . | . . . . . . . . . . . . . . . . . . . . . . . . . . . . . . . . . Escape Stasis 103 | . . . . . . . . . . . . . 13 . . . . . . . . . . . . . . . . 83 7 . Rewire 147 | . . . . . . 4 . . . 46 . . . . . . . . . . . . . . 97 . . . . . . . Trap . | . . . . . . . . . . . . . . . . . . . . . . . . . . . . . . . . . Miscellaneous 40 | . . . . . . 8 . . . 8 8 . 8 . . . . . . . . . . 8 . . . . . . . . Route ------- -11/Scrapyard -10/Materials (discovered 4 exits: *Mat x3 / [*Min]) -10/Mines (discovered 2 exits: *Mat x2) -9/Materials (discovered 2 exits: *Min x2) -9/Mines -8/Materials -8/Storage (discovered 2 exits: [*Fac] / *Rec) -8/Recycling (discovered 2 exits: *Fac / *Scr) -8/Scraptown (discovered 2 exits: *Fac x2) -6/Factory (discovered 8 exits: *Fac x4 / Low x2 / *Ext x2) -6/Extension (discovered 2 exits: *Fac / *Cet) -6/Cetus (discovered 2 exits: *Fac / *Arc) -6/Archives (discovered 3 exits: *Fac / *Hub x2) -6/Hub_04(d) (discovered 3 exits: *Fac x3) -5/Factory (discovered 5 exits: Fac x4 / *Upp) -5/Waste -5/Factory (discovered 6 exits: Fac x4 / *Upp x2) -5/Upper Caves -5/Upper Caves (discovered 2 exits: *Fac / *Zhi) -5/Zhirov -4/Proximity Caves -4/Factory (discovered 7 exits: Res x4 / *Upp x2 / Arm) -4/Upper Caves (discovered 2 exits: *Upp / *War) -4/Upper Caves (discovered 2 exits: *Res / *War) -4/Warlord -3/Proximity Caves -3/Research -3/Quarantine -2/Research (discovered 4 exits: Acc x2 / *Tes x2) -2/Testing (discovered 3 exits: *Acc / *Sec / *Frg) -2/Protoforge -1/Access (discovered 2 exits: Sur / *Com) -1/Command History --------- Turn | Location | Event 5 | -11/Scrapyard | Discovered new exit (range 16) 38 | -11/Scrapyard | Entered Materials 103 | -10/Materials | Discovered new exit (range 5) 127 | -10/Materials | Discovered new exit (range 16) 147 | -10/Materials | Discovered new exit (range 16) 160 | -10/Materials | Discovered new exit (range 5) 163 | -10/Materials | Entered Mines 189 | -10/Mines | Discovered new exit (range 9) 327 | -10/Mines | Build established: Mutant 343 | -10/Mines | Learned location of Storage (-8) 448 | -10/Mines | Discovered new exit (range 8) 452 | -10/Mines | Entered Materials 452 | -9/Materials | Evolved 2 slots: Propulsion x1, Utility x1 453 | -9/Materials | Identified exit to Mines 553 | -9/Materials | Lost 3 parts (3n) 565 | -9/Materials | Released all parts (6) 569 | -9/Materials | Core integrity fell below 50% 590 | -9/Materials | Entered Mines 598 | -9/Mines | Met a Derelict bent on vengeance 620 | -9/Mines | Assembled infested the area 622 | -9/Mines | Joined a pair of Derelicts in attacking an 0b10 outpost 627 | -9/Mines | Learned location of 1 exit from Materials 695 | -9/Mines | Found a hidden stash of uninstalled traps 723 | -9/Mines | Found a damaged Exp. Sensor Array with a note attached 723 | -9/Mines | Discovered new exit (range 13) 724 | -9/Mines | Found Prototype Device 724 | -9/Mines | Identified Exp. Sensor Array 742 | -9/Mines | Received a Rocket Launcher from a helpful Derelict 771 | -9/Mines | Entered Materials 771 | -8/Materials | Evolved 2 slots: Propulsion x1, Utility x1 772 | -8/Materials | Identified exit to Storage 873 | -8/Materials | Entered Storage 921 | -8/Storage | Assisted by bots powering up and referring to "LRC-V3" 1026 | -8/Storage | Lost 4 allies 1037 | -8/Storage | Discovered new exit (range 20) 1181 | -8/Storage | Met a pair of Derelict thieves 1198 | -8/Storage | Used back door to open Recycling access 1198 | -8/Storage | Discovered new exit (range 5) 1256 | -8/Storage | Build established: Commander-Mutant 1273 | -8/Storage | First assault squad dispatched 1320 | -8/Storage | Core integrity fell below 50% 1348 | -8/Storage | Lost 6 allies 1355 | -8/Storage | Entered Recycling 1544 | -8/Recycling | Discovered new exit (range 17) 1609 | -8/Recycling | Build established: Mutant 1611 | -8/Recycling | Learned 4 Factory zone layouts 1705 | -8/Recycling | Learned 2 Storage zone layouts 1739 | -8/Recycling | Learned 4 Factory zone layouts 1764 | -8/Recycling | Learned location of Extension (-6) 1799 | -8/Recycling | Identified exit to Scraptown 1843 | -8/Recycling | Learned Factory emergency access door positions 1857 | -8/Recycling | Scanned before Scraplab entrance 1866 | -8/Recycling | Entered Scraplab 1872 | -8/Recycling | Entered Scraptown 1872 | -8/Scraptown | System corruption cleaned by C-Scrubber 1873 | -8/Scraptown | Identified exit to Factory 1954 | -8/Scraptown | Visited UFD Registry 1954 | -8/Scraptown | Registered with UFD as "Dualform" 1962 | -8/Scraptown | Visited Cave Peace 1986 | -8/Scraptown | Visited Fellowship of the Rings 1998 | -8/Scraptown | Visited Red Mages 2015 | -8/Scraptown | Visited Spacefarers 2037 | -8/Scraptown | Visited Cyclists 2041 | -8/Scraptown | Entered Cyclist Reading Room 2059 | -8/Scraptown | Visited Shadow of the Wyrm 2211 | -8/Scraptown | Visited Junk Cannon Lab 2220 | -8/Scraptown | Visited DA-N13 Charitable Foundation 2225 | -8/Scraptown | Found DCF Scrap (28 items) 2263 | -8/Scraptown | Visited Scrapoid Research Area 2329 | -8/Scraptown | Visited Science Guys 2349 | -8/Scraptown | Visited Infowarlord's Domain 2353 | -8/Scraptown | Found Exp. Signal Interpreter 2366 | -8/Scraptown | Visited Junk Repository 2382 | -8/Scraptown | Visited Scrap Suit Storage 2390 | -8/Scraptown | Visited Observation Area 2400 | -8/Scraptown | Visited Junk Repository 2412 | -8/Scraptown | Visited Scrapoid Pod Storage 2463 | -8/Scraptown | Met Optimus 2463 | -8/Scraptown | Accepted into 0bPrime 2557 | -8/Scraptown | Entered Factory 2557 | -6/Factory | Evolved 4 slots: Propulsion x2, Utility x2 2558 | -6/Factory | Identified exit to Lower Caves 2559 | -6/Factory | Identified exit to Factory 2559 | -6/Factory | Discovered exit to Factory (range 13) 2776 | -6/Factory | Fabricated Adv. Launcher Guidance Computer (x2) 2870 | -6/Factory | Discovered exit to Factory (range 17) 2879 | -6/Factory | Build established: Scout 3517 | -6/Factory | Identified exit to Extension 3924 | -6/Factory | Entered Extension 4279 | -6/Extension | Build established: Mutant 4433 | -6/Extension | Rescued a captive Derelict 4433 | -6/Extension | Rescued a captive Derelict 4504 | -6/Extension | Rescued a captive Derelict 4505 | -6/Extension | Rescued a captive Derelict 4745 | -6/Extension | Spotted B-75 Beast 4798 | -6/Extension | Allies destroyed B-75 Beast 4803 | -6/Extension | Spotted B-75 Beast 4827 | -6/Extension | Destroyed B-75 Beast 4861 | -6/Extension | Rescued a captive Derelict 4863 | -6/Extension | Rescued a captive Derelict 4933 | -6/Extension | Rescued a captive Derelict 4960 | -6/Extension | Rescued A7 5061 | -6/Extension | Discovered exit to Factory (range 10) 5062 | -6/Extension | Discovered new exit (range 6) 5084 | -6/Extension | Identified exit to Cetus 5125 | -6/Extension | Entered Cetus 5125 | -6/Cetus | Accompanied by 10 allies (A7) 5130 | -6/Cetus | Acquired a Cetus Manufacturing Module code from A7 5135 | -6/Cetus | Spotted Cetus Guard 5138 | -6/Cetus | Spotted Cetus Guard 5138 | -6/Cetus | Spotted Cetus Guard 5140 | -6/Cetus | Spotted Cetus Guard 5141 | -6/Cetus | Destroyed Cetus Guard 5155 | -6/Cetus | Allies destroyed Cetus Guard 5164 | -6/Cetus | Allies destroyed Cetus Guard 5168 | -6/Cetus | Allies destroyed Cetus Guard 5204 | -6/Cetus | Started Cetus Manufacturing Module 5229 | -6/Cetus | Manufactured an Enhanced Grunt 5237 | -6/Cetus | Escorted A7 to Cetus Mainframe 5254 | -6/Cetus | Manufactured an Enhanced Grunt 5279 | -6/Cetus | Manufactured an Enhanced Grunt 5292 | -6/Cetus | Build established: Commander-Mutant 5304 | -6/Cetus | Manufactured an Enhanced Grunt 5329 | -6/Cetus | Manufactured an Enhanced Grunt 5339 | -6/Cetus | Discovered new exit (range 22) 5352 | -6/Cetus | Spotted Cetus Guard 5353 | -6/Cetus | Spotted Cetus Guard 5355 | -6/Cetus | Spotted Cetus Guard 5357 | -6/Cetus | Spotted Cetus Guard 5361 | -6/Cetus | Destroyed Cetus Guard 5367 | -6/Cetus | Destroyed Cetus Guard 5371 | -6/Cetus | Allies destroyed Cetus Guard 5380 | -6/Cetus | Discovered exit to Factory (range 22) 5381 | -6/Cetus | Allies destroyed Cetus Guard 5386 | -6/Cetus | Met Revision 17 5397 | -6/Cetus | Attached CPS modules to A7. 5483 | -6/Cetus | Murdered A7 5486 | -6/Cetus | Extracted ID and sensor layout for unrecognized location from A7's data core 5488 | -6/Cetus | Found Prototype Protection 5488 | -6/Cetus | Identified Med. Regenerative Plating 5582 | -6/Cetus | Identified exit to Archives 5624 | -6/Cetus | Entered Archives 5624 | -6/Archives | Accompanied by 11 allies 5677 | -6/Archives | Discovered new exit (range 22) 5683 | -6/Archives | Discovered new exit (range 22) 5690 | -6/Archives | Lost 3 allies 5691 | -6/Archives | Discovered exit to Factory (range 22) 5707 | -6/Archives | Identified exit to Hub_04(d) 5742 | -6/Archives | Entered Hub_04(d) 5742 | -6/Hub_04(d) | Accompanied by 8 allies 5786 | -6/Hub_04(d) | Discovered exit to Factory (range 10) 6007 | -6/Hub_04(d) | Discovered exit to Factory (range 8) 6205 | -6/Hub_04(d) | Discovered exit to Factory (range 5) 6526 | -6/Hub_04(d) | Found Prototype Processor 6526 | -6/Hub_04(d) | Identified Exp. Targeting Computer 6542 | -6/Hub_04(d) | P-60 Hacker assimilated allied YW-418(b) 6654 | -6/Hub_04(d) | Network Hub disabled 6687 | -6/Hub_04(d) | Network Hub disabled 6792 | -6/Hub_04(d) | First assault squad dispatched 6804 | -6/Hub_04(d) | Spotted Lightning 6804 | -6/Hub_04(d) | Spotted Lightning 6804 | -6/Hub_04(d) | Spotted Lightning 6827 | -6/Hub_04(d) | Network Hub disabled 6829 | -6/Hub_04(d) | Core integrity fell below 50% 6834 | -6/Hub_04(d) | Entered Factory 6834 | -5/Factory | Evolved 2 slots: Power x1, Utility x1 6990 | -5/Factory | Fabricated Lrn. Terrain Scanner? 7032 | -5/Factory | Identified exit to Factory 7060 | -5/Factory | Discovered new exit (range 9) 7063 | -5/Factory | Identified exit to Upper Caves 7106 | -5/Factory | Build established: Scout 7134 | -5/Factory | Sucked down chute 7134 | -5/Factory | Entered Waste 7147 | -5/Waste | Spotted C-40 Crusher 7148 | -5/Waste | Spotted C-40 Crusher 7206 | -5/Waste | Spotted C-40 Crusher 7216 | -5/Waste | Spotted C-40 Crusher 7217 | -5/Waste | Spotted C-40 Crusher 7259 | -5/Waste | Spotted C-40 Crusher 7304 | -5/Waste | Discovered new exit (range 10) 7309 | -5/Waste | Found Prototype Device 7309 | -5/Waste | Identified System Purifier 7313 | -5/Waste | Identified exit to Factory 7314 | -5/Waste | Entered Factory 7333 | -5/Factory | Discovered exit to Upper Caves (range 12) 7528 | -5/Factory | Fabricated Cmb. Airjet? 7916 | -5/Factory | Central database locked down 8096 | -5/Factory | Entered Upper Caves 8458 | -5/Upper Caves | Discovered new exit (range 11) 8464 | -5/Upper Caves | Identified exit to Upper Caves 8779 | -5/Upper Caves | Entered another Upper Caves area 8794 | -5/Upper Caves | Discovered exit to Factory (range 17) 9611 | -5/Upper Caves | Found Imp. Powered Armor 9653 | -5/Upper Caves | Discovered new exit (range 15) 9707 | -5/Upper Caves | Learned Factory interactive machine intel 9755 | -5/Upper Caves | Identified exit to Zhirov 9839 | -5/Upper Caves | Entered Zhirov 9839 | -5/Zhirov | Discovered new exit (range 3) 9850 | -5/Zhirov | Met Zhirov 9863 | -5/Zhirov | Learned location of Quarantine (-3) 9863 | -5/Zhirov | Learned location of Testing (-2) 9866 | -5/Zhirov | Zhirov requested help retrieving the SGEMP Prototype 9875 | -5/Zhirov | Found Alien Artifact 9875 | -5/Zhirov | Identified Integrated Dissipator 9875 | -5/Zhirov | Installed Integrated Dissipator, increased core heat dissipation (+20) 9970 | -5/Zhirov | Found Alien Artifact 9992 | -5/Zhirov | Identified exit to Proximity Caves 9994 | -5/Zhirov | Entered Proximity Caves 10217 | -4/Proximity Caves | Learned Research trap positions 10811 | -4/Proximity Caves | Discovered exit to Factory (range 9) 10835 | -4/Proximity Caves | Learned Research terminal intel 10845 | -4/Proximity Caves | Entered Factory 10845 | -4/Factory | Evolved 2 slots: Propulsion x2 10846 | -4/Factory | Loaded intel: 54 interactive machine locations 10928 | -4/Factory | Central database locked down 10928 | -4/Factory | Identified Transdimensional Reconstructor 11057 | -4/Factory | Identified exit to Upper Caves 11057 | -4/Factory | Identified exit to Armory 11057 | -4/Factory | Identified exit to Research 11118 | -4/Factory | Repaired Centrium Medium Armor Plating? 11162 | -4/Factory | Repaired Quantum Reactor? 11221 | -4/Factory | Repaired Weapon Mount? 11242 | -4/Factory | Repaired Quantum Reactor? 11332 | -4/Factory | Repaired Antigrav Array+ 11504 | -4/Factory | Entered Upper Caves 11638 | -4/Upper Caves | Ambushed by wild Derelicts 11850 | -4/Upper Caves | A Derelict revealed a hidden shortcut to "reach the base" 11850 | -4/Upper Caves | Identified exit to Warlord 12167 | -4/Upper Caves | Attracted the attention of an 0b10 checkpoint 12185 | -4/Upper Caves | Discovered new exit (range 5) 12187 | -4/Upper Caves | Identified exit to Upper Caves 12198 | -4/Upper Caves | Entered another Upper Caves area 12203 | -4/Upper Caves | Discovered exit to Research (range 12) 12599 | -4/Upper Caves | Attracted the attention of an 0b10 outpost 12768 | -4/Upper Caves | Attracted the attention of an 0b10 checkpoint 13063 | -4/Upper Caves | Entered Warlord 13342 | -4/Warlord | Warlord's base attacked by MAIN.C 13349 | -4/Warlord | Found Prototype Piercing Weapon 13351 | -4/Warlord | Found Prototype Piercing Weapon 13353 | -4/Warlord | Found Prototype Energy Cannon 13355 | -4/Warlord | Found Prototype Energy Cannon 13384 | -4/Warlord | Rebuked by Warlord 13443 | -4/Warlord | Found Prototype Device 13443 | -4/Warlord | Identified Thermal Barrier 13449 | -4/Warlord | Found Prototype Device 13449 | -4/Warlord | Identified Exp. Cloaking Device 13457 | -4/Warlord | Found Prototype Processor 13457 | -4/Warlord | Identified Exp. Core Analyzer 13473 | -4/Warlord | Found Prototype Reactor 13473 | -4/Warlord | Identified Vortex Chain Reactor 13652 | -4/Warlord | Lost 3 allies 13692 | -4/Warlord | Warlord forces counterattacked 13746 | -4/Warlord | Spotted Executioner 13755 | -4/Warlord | Spotted Striker 13804 | -4/Warlord | Spotted Executioner 13814 | -4/Warlord | Attached CPS modules to Executioner. 13821 | -4/Warlord | Spotted Striker 13825 | -4/Warlord | Found Exp. Targeting Computer 13843 | -4/Warlord | Found Prototype Device 13843 | -4/Warlord | Identified Adv. Kinecellerator 13882 | -4/Warlord | Lost 17 allies 13907 | -4/Warlord | Spotted Striker 13980 | -4/Warlord | Lost 9 allies 13993 | -4/Warlord | Spotted Striker 14017 | -4/Warlord | Warlord base infiltrated, sounded retreat 14043 | -4/Warlord | Attached CPS modules to Enhanced Demolisher. 14046 | -4/Warlord | Attached CPS modules to Enhanced Demolisher. 14110 | -4/Warlord | Discovered new exit (range 9) 14113 | -4/Warlord | Build established: Scavenger-Mutant 14133 | -4/Warlord | Found Exp. Core Analyzer 14141 | -4/Warlord | Identified exit to Proximity Caves 14173 | -4/Warlord | Entered Proximity Caves 14197 | -3/Proximity Caves | Lost 7 allies 14387 | -3/Proximity Caves | Snuck into a huge 0b10 base via the rear entrance 15040 | -3/Proximity Caves | Discovered exit to Research (range 21) 15095 | -3/Proximity Caves | Fabricated CPS Tube? 15560 | -3/Proximity Caves | Spotted B-86 Titan 15595 | -3/Proximity Caves | Lost 5 allies 15600 | -3/Proximity Caves | Allies destroyed B-86 Titan 15621 | -3/Proximity Caves | Spotted B-86 Titan 15682 | -3/Proximity Caves | Allies destroyed B-86 Titan 15892 | -3/Proximity Caves | Entered Research 15892 | -3/Research | Accompanied by 5 allies 15892 | -3/Research | Evolved 2 slots: Utility x2 15893 | -3/Research | Loaded intel: 57 trap records 15894 | -3/Research | Loaded intel: 24 terminal locations 15950 | -3/Research | Loaded intel: 4 recycling unit locations 15954 | -3/Research | Garrison activated, responded to threat 16000 | -3/Research | Lost 5 allies 16092 | -3/Research | Revision forces began assault on 0b10 16098 | -3/Research | Discovered new exit (range 17) 16160 | -3/Research | Identified exit to Quarantine 16170 | -3/Research | Entered Quarantine 16222 | -3/Quarantine | Found Alien Artifact 16229 | -3/Quarantine | Cryocooling Duct disabled 16244 | -3/Quarantine | Ambient heat levels rising (+20) 16244 | -3/Quarantine | Non-combat units ordered to evacuate 16296 | -3/Quarantine | Found Alien Energy Cannon 16296 | -3/Quarantine | Identified Core Cannon 16304 | -3/Quarantine | Identified Vortex Cannon (x2) 16313 | -3/Quarantine | Found Spectral Analyzer 16324 | -3/Quarantine | Identified Vortex Lance (x2) 16469 | -3/Quarantine | Found Alien Artifact 16474 | -3/Quarantine | Found Alien Artifact 16504 | -3/Quarantine | Discovered new exit (range 14) 16514 | -3/Quarantine | Learned Research scanalyzer intel 16560 | -3/Quarantine | Learned 8 Access zone layouts 16597 | -3/Quarantine | Loaded intel: 24 interactive machine locations 16624 | -3/Quarantine | Learned location of 2 exits from Research 16645 | -3/Quarantine | Learned Testing trap positions 16665 | -3/Quarantine | Learned Research stockpile data 16675 | -3/Quarantine | Identified exit to Research 16676 | -3/Quarantine | Entered Research 16676 | -2/Research | Evolved 2 slots: Power x1, Utility x1 16677 | -2/Research | Identified exit to Access 16679 | -2/Research | Loaded intel: 6 scanalyzer locations 16720 | -2/Research | Build established: Scientist-Ninja 16743 | -2/Research | Discovered new exit (range 4) 16744 | -2/Research | Identified exit to Testing 16866 | -2/Research | Entered Testing 16867 | -2/Testing | Loaded intel: 22 trap records 16876 | -2/Testing | Found Prototype Energy Cannon 16876 | -2/Testing | Identified Disintegrator 16917 | -2/Testing | Found Prototype Energy Cannon 16917 | -2/Testing | Identified Cld. Nova Cannon 16932 | -2/Testing | Discovered exit to Access (range 4) 17051 | -2/Testing | Spotted Striker 17051 | -2/Testing | Spotted Striker 17103 | -2/Testing | Found Prototype Device 17103 | -2/Testing | Identified 2N-1CE's Frost Array 17317 | -2/Testing | Found Exp. Core Analyzer 17445 | -2/Testing | Build established: Scientist-Mutant 17447 | -2/Testing | Found Prototype Launcher 17447 | -2/Testing | Identified Z-bomb Delivery System 17493 | -2/Testing | Found Prototype Energy Cannon 17653 | -2/Testing | Identified Potential Cannon 17684 | -2/Testing | Spotted Fortress 17747 | -2/Testing | Discovered new exit (range 6) 17747 | -2/Testing | Discovered new exit (range 7) 17749 | -2/Testing | Identified exit to Section 7 17751 | -2/Testing | Identified exit to Protoforge 17752 | -2/Testing | Entered Protoforge 17948 | -2/Protoforge | Spotted B-90 Cyclops 17975 | -2/Protoforge | Spotted Hotshot 17977 | -2/Protoforge | Spotted Hotshot 17978 | -2/Protoforge | Spotted Hotshot 18064 | -2/Protoforge | Build established: Infiltrator-Assassin 18105 | -2/Protoforge | Spotted Decapitator 18105 | -2/Protoforge | Spotted Decapitator 18105 | -2/Protoforge | Spotted Decapitator 18105 | -2/Protoforge | Spotted Decapitator 18105 | -2/Protoforge | Spotted Decapitator 18109 | -2/Protoforge | Identified Hpw. Transdimensional Reconstructor 18109 | -2/Protoforge | Warped through subspace 18122 | -2/Protoforge | Superfortress began startup sequence 18145 | -2/Protoforge | Found Prototype Device 18145 | -2/Protoforge | Identified Cep. Antimissile System 18191 | -2/Protoforge | Additional patrols dispatched to research labs 18218 | -2/Protoforge | Spotted Decapitator 18218 | -2/Protoforge | Spotted Decapitator 18334 | -2/Protoforge | Destroyed 9 combat bots 18380 | -2/Protoforge | Crushed by falling debris 18381 | -2/Protoforge | System corruption reached 10% 18449 | -2/Protoforge | Spotted Decapitator 18450 | -2/Protoforge | Spotted Decapitator 18450 | -2/Protoforge | Spotted Immortal 18450 | -2/Protoforge | Spotted Immortal 18452 | -2/Protoforge | Destroyed Decapitator 18471 | -2/Protoforge | Destroyed Decapitator 18569 | -2/Protoforge | Found Prototype Device 18572 | -2/Protoforge | Found Prototype Slashing Weapon 18572 | -2/Protoforge | Identified Exp. Terror Saw 18575 | -2/Protoforge | Found Faulty Exp. Terror Saw 18614 | -2/Protoforge | Found Cep. Gyrokinetic System 18662 | -2/Protoforge | Destroyed Immortal 18666 | -2/Protoforge | Destroyed Immortal 18668 | -2/Protoforge | Spotted Decapitator 18668 | -2/Protoforge | Spotted Decapitator 18668 | -2/Protoforge | Spotted Decapitator 18668 | -2/Protoforge | Spotted Decapitator 18679 | -2/Protoforge | Destroyed Decapitator 18679 | -2/Protoforge | Destroyed Decapitator 18679 | -2/Protoforge | Destroyed Decapitator 18688 | -2/Protoforge | Destroyed Decapitator 18693 | -2/Protoforge | Found Prototype Protection 18693 | -2/Protoforge | Identified Cep. Core Shell 18715 | -2/Protoforge | Found Cep. Rapid Grenade Launcher 18718 | -2/Protoforge | Identified Crosscalibrator 18723 | -2/Protoforge | Found Cep. Rapid Grenade Launcher 18743 | -2/Protoforge | Build established: Scavenger-Mutant 18792 | -2/Protoforge | Spotted V205-d 18854 | -2/Protoforge | Scanned by Researcher 18897 | -2/Protoforge | Destroyed V205-d 18908 | -2/Protoforge | Forge Plexus network access discovered 18925 | -2/Protoforge | Lost 4 parts (1p2n1u) 18936 | -2/Protoforge | Found Imp. Powered Armor 18962 | -2/Protoforge | Found Cep. Tiamat Rocket Array 19002 | -2/Protoforge | First assault squad dispatched 19029 | -2/Protoforge | Found Cep. Antigrav Storage Unit 19032 | -2/Protoforge | Found Cep. NT7 Matterbank 19034 | -2/Protoforge | Found Cep. Matter Streamer 19042 | -2/Protoforge | Found Exp. Melee Analysis Suite 19055 | -2/Protoforge | Found Cep. Chromion Battery 19057 | -2/Protoforge | Found Cep. Chromion Battery 19062 | -2/Protoforge | Found Faulty Cep. Matter Streamer 19063 | -2/Protoforge | Found Cep. NT7 Matterbank 19178 | -2/Protoforge | Destroyed 7 combat bots 19198 | -2/Protoforge | Destroyed Decapitator 19201 | -2/Protoforge | Destroyed Decapitator 19212 | -2/Protoforge | Spotted V027-t 19214 | -2/Protoforge | Spotted V787-p 19214 | -2/Protoforge | Spotted V609-y 19223 | -2/Protoforge | Found Prototype Launcher 19223 | -2/Protoforge | Identified Cep. Concussive Dispersal Blaster 19270 | -2/Protoforge | Spotted EXE-6 19270 | -2/Protoforge | Spotted EXE-6 19280 | -2/Protoforge | Spotted SKR-2 19289 | -2/Protoforge | Lost 3 parts (2p1u) 19293 | -2/Protoforge | UFD initiated attack on Protoforge 19293 | -2/Protoforge | Loaded intel: 3 recycling unit locations 19325 | -2/Protoforge | Found Prototype Processor 19325 | -2/Protoforge | Identified Exp. Armor Integrity Analyzer 19329 | -2/Protoforge | Optimus greeted in Protoforge 19329 | -2/Protoforge | Found Exp. Core Analyzer 19333 | -2/Protoforge | Found Exp. Kinecellerator 19336 | -2/Protoforge | Found Cep. XC Strikerail 19340 | -2/Protoforge | Lost 3 allies 19347 | -2/Protoforge | Found Cep. XC Strikerail 19354 | -2/Protoforge | Spotted SKR-2 19357 | -2/Protoforge | Identified Dimensional Node Initializer 19357 | -2/Protoforge | Initialized slip node 19359 | -2/Protoforge | Spotted SKR-2 19360 | -2/Protoforge | Identified Subatomic Replicator 19360 | -2/Protoforge | Used Subatomic Replicator to create Alien Artifact 19397 | -2/Protoforge | Lost 4 allies 19397 | -2/Protoforge | Found Cep. Core Shell 19400 | -2/Protoforge | Found Cep. Core Shell 19408 | -2/Protoforge | Identified Supercharged TR 19408 | -2/Protoforge | Warped through subspace to slip node 19409 | -2/Protoforge | Optimus attacked Superfortress 19409 | -2/Protoforge | Core integrity fell below 50% 19409 | -2/Protoforge | Spotted Striker 19412 | -2/Protoforge | Spotted Decapitator 19424 | -2/Protoforge | Met 7R-MNS 19428 | -2/Protoforge | Found Cep. Heavy Railcannon 19430 | -2/Protoforge | Found Prototype Protection 19432 | -2/Protoforge | Found Cep. Zero-point Core 19434 | -2/Protoforge | Found Cep. Zero-point Core 19436 | -2/Protoforge | Found Cep. Zero-point Core 19441 | -2/Protoforge | Lost 4 parts (1p1n1u1w) 19441 | -2/Protoforge | Found Prototype Protection 19441 | -2/Protoforge | Identified Centrium Heavy Armor Plating (x2) 19445 | -2/Protoforge | Found Cep. Antimissile System 19476 | -2/Protoforge | Found Cep. Core Shell 19481 | -2/Protoforge | Lost 19 allies 19500 | -2/Protoforge | Spotted Decapitator 19506 | -2/Protoforge | Spotted Decapitator 19506 | -2/Protoforge | Spotted Decapitator 19507 | -2/Protoforge | Spotted V929-v 19538 | -2/Protoforge | Destroyed Decapitator 19538 | -2/Protoforge | Destroyed Decapitator 19538 | -2/Protoforge | Destroyed Decapitator 19575 | -2/Protoforge | Found Exp. Active Sensor Suite 19641 | -2/Protoforge | Destroyed V609-y 19644 | -2/Protoforge | Found Cep. Gyrokinetic System 19653 | -2/Protoforge | Found Cep. Gyrokinetic System 19702 | -2/Protoforge | Found Cep. Zero-point Core 19725 | -2/Protoforge | Spotted Decapitator 19734 | -2/Protoforge | Destroyed Decapitator 19752 | -2/Protoforge | Found Mni. Quantum Capacitor 19753 | -2/Protoforge | Found Prototype Device 19753 | -2/Protoforge | Identified Cep. Networked Targeting System 19758 | -2/Protoforge | Found Exp. Kinecellerator 19760 | -2/Protoforge | Found Cep. Weapon Articulator 19763 | -2/Protoforge | Found Faulty Femtoactuators 19794 | -2/Protoforge | Spotted V030-g 19794 | -2/Protoforge | Destroyed V030-g 19799 | -2/Protoforge | Found Med. Regenerative Plating 19801 | -2/Protoforge | Found Prototype Processor 19801 | -2/Protoforge | Identified Cep. Melee Reflex Suite 19804 | -2/Protoforge | Found Faulty Femtoactuators 19810 | -2/Protoforge | Found Faulty Mni. Quantum Capacitor 19901 | -2/Protoforge | Spotted Immortal 19902 | -2/Protoforge | Spotted Immortal 19956 | -2/Protoforge | Build established: Scavenger-Scout 20063 | -2/Protoforge | Destroyed Immortal 20065 | -2/Protoforge | Destroyed Immortal 20080 | -2/Protoforge | Spotted V290-k 20088 | -2/Protoforge | Found Faulty Exp. Force Field 20100 | -2/Protoforge | Spotted V514-g 20103 | -2/Protoforge | Found Cep. Phase Shift Module 20107 | -2/Protoforge | Found Corrupted Exp. Force Field 20116 | -2/Protoforge | Destroyed V514-g 20161 | -2/Protoforge | Spotted AP7-3 20237 | -2/Protoforge | Found Transdimensional Reconstructor 20276 | -2/Protoforge | Found Cep. Heavy Railcannon 20278 | -2/Protoforge | Spotted AP7-3 20336 | -2/Protoforge | Spotted Executioner 20344 | -2/Protoforge | Spotted Executioner 20603 | -2/Protoforge | System corruption reached 30% 20635 | -2/Protoforge | Found Cep. Plasma Driver 20638 | -2/Protoforge | Found Cep. Plasma Driver 20659 | -2/Protoforge | Build established: Scavenger-Skirmisher 20810 | -2/Protoforge | Spotted Hotshot 20873 | -2/Protoforge | Destroyed Executioner 20897 | -2/Protoforge | Destroyed Executioner 20908 | -2/Protoforge | Found Exp. Targeting Computer 21012 | -2/Protoforge | Destroyed AP7-3 21030 | -2/Protoforge | Destroyed AP7-3 21088 | -2/Protoforge | Found Cep. Impact Drone Bay 21099 | -2/Protoforge | Found Faulty Cep. Impact Drone Bay 21102 | -2/Protoforge | Found Faulty Cep. Core Analysis Suite 21104 | -2/Protoforge | Found Cep. Core Analysis Suite 21107 | -2/Protoforge | Found Cep. Blasthammer 21184 | -2/Protoforge | Found Faulty Cep. Deflector Sword 21186 | -2/Protoforge | Found Faulty Exp. Terror Saw 21187 | -2/Protoforge | Found Exp. Terror Saw 21188 | -2/Protoforge | Found Faulty Exp. Jetlance 21194 | -2/Protoforge | Found Cep. Deflector Sword 21199 | -2/Protoforge | Found Faulty Exp. Jetlance 21224 | -2/Protoforge | Found Cep. Nanofilaments [Polyglass] 21224 | -2/Protoforge | Installed Cep. Nanofilaments [Polyglass], 3 resistances modified: KI -10%, TH +20%, EX -50% 21231 | -2/Protoforge | Found Cep. Navigation Harness 21305 | -2/Protoforge | Found Cep. Melee Reflex Suite 21376 | -2/Protoforge | Found Cep. Gyrokinetic System 21391 | -2/Protoforge | Found Faulty Cep. Combat Aerolev Unit 21395 | -2/Protoforge | Found Faulty Cep. Gyrokinetic System 21416 | -2/Protoforge | Found Faulty Cep. Gyrokinetic System 21453 | -2/Protoforge | Build established: Scavenger-Scout 21463 | -2/Protoforge | Spotted V982-n 21470 | -2/Protoforge | Found Cep. Zero-point Core 21480 | -2/Protoforge | Core integrity fell below 20% 21556 | -2/Protoforge | Found Cep. Projectile Intercept Suite 21557 | -2/Protoforge | Found Faulty Cep. RG22 Armor 21566 | -2/Protoforge | Found Corrupted Cep. RG22 Armor 21586 | -2/Protoforge | Destroyed V290-k 21592 | -2/Protoforge | Found Exp. Armor Integrity Analyzer 21778 | -2/Protoforge | Spotted Executioner 21783 | -2/Protoforge | Spotted Striker 21792 | -2/Protoforge | Spotted Executioner 21792 | -2/Protoforge | Spotted Executioner 21796 | -2/Protoforge | Entered Access 21796 | -1/Access | Evolved 2 slots: Utility x1, Weapon x1 21797 | -1/Access | Identified exit to Surface 21806 | -1/Access | Spotted Striker 22046 | -1/Access | First assault squad dispatched 22080 | -1/Access | High security lockdown imminent 22143 | -1/Access | Spotted Executioner 22147 | -1/Access | Spotted Executioner 22152 | -1/Access | Destroyed Executioner 22156 | -1/Access | Destroyed Executioner 22160 | -1/Access | High security lockdown engaged 22177 | -1/Access | Destroyed 15 combat bots 22217 | -1/Access | Spotted Striker 22217 | -1/Access | Spotted Striker 22224 | -1/Access | Destroyed Striker 22233 | -1/Access | Destroyed Striker 22260 | -1/Access | Spotted Striker 22261 | -1/Access | Spotted Striker 22265 | -1/Access | Destroyed Striker 22266 | -1/Access | Destroyed Striker 22287 | -1/Access | Destroyed 11 combat bots 22310 | -1/Access | Discovered new exit (range 8) 22313 | -1/Access | Identified exit to Command 22314 | -1/Access | Entered Command 22536 | -1/Command | High security lockdown imminent 22616 | -1/Command | High security lockdown engaged 22619 | -1/Command | Destroyed 17 combat bots 22621 | -1/Command | Spotted Striker 22621 | -1/Command | Spotted Alpha 7 22752 | -1/Command | Crushed by falling debris 22767 | -1/Command | Spotted M Guard 22767 | -1/Command | Spotted M Guard 22768 | -1/Command | Spotted Combat Programmer 22768 | -1/Command | Spotted Combat Programmer 22785 | -1/Command | System corruption reached 10% 22796 | -1/Command | Destroyed Combat Programmer 22823 | -1/Command | Destroyed Combat Programmer 22824 | -1/Command | Found Prototype Processor 22849 | -1/Command | Destroyed M Guard 22861 | -1/Command | Spotted Investigator 22870 | -1/Command | Destroyed Investigator 22878 | -1/Command | All MAIN.C guards destroyed 22886 | -1/Command | Core integrity fell below 50% 22887 | -1/Command | Released all parts (12) 22899 | -1/Command | Self-destructed Last Messages --------------- 22887_ Released Femtoactuators. 22887_ Released Cep. Deflector Sword. 22887_ Released Cep. Core Analysis Suite. 22887_ Released Cep. Gyrokinetic System. 22887_ Released Cep. Antigrav Storage Unit. 22887_ Released Exp. Active Sensor Suite. 22887_ Released Cep. Gyrokinetic System. 22887_ Released Cep. Deflector Sword. 22887_ Released Cep. Blasthammer. 22888_ The unstable cave ceiling collapses. 22888_ Slug penetrates L-61 Swordsman. 22888_ Penetrated by Slug. 22891_ System corrupted: Component data lost. 22891_ Penetrated by Slug. 22893_ Slug penetrates Door. 22893_ Penetrated by Slug. 22894_ Slug penetrates Wall. 22896_ Slug penetrates Reinforced Barrier. 22898_ Slug penetrates Door. 22898_ Slug penetrates Reinforced Barrier. Map ----- +----------------------------------------------------+ | ????????????????????????????????????????????????# | | ????????????????????????????????????????????????## | | ?????????????????????????????????????????????????? | | ?????????????????????????????????????????????????? | | ?????????????????????????????????????????????????? | | ?????????????????????????????????????????????????? | | ?????????????????????????????????????????????????? | | ?????????????????????????????????????????????????? | | ?????????????????????????????????????????????????? | | ?????????????????????????????????????????????????? | | ?????????????????????????????????????????????????? | | ?????????????????????????????????????????????????? | | ?????????????????????????????????????????????????? | | ?????????????????????????????????????????????????? | | ?????????????????????????????????????????????????? | | ?????????????????????????????????????????????????? | | ?????????????????????????????????????????????????? | | ?????????????????????????????????????????????????? | | ?????????????????????????????????????????????????# | | ????????????????????????????????????????????????## | | ???????????????????????????????????????????????## | | ?????????????????????#"""##?#####?#####?#####?## | | ?????????????????????# T#?# #?# #?#//!### | | ?????????????????????#+;+#### W ### W ###!/!## | | ?????????????????????# l /!==/!= | | ?????????????????????# @ !!!]= | | ?????????????????????# % !!/ | | ?????????????????????# h | | ?????????????????????# h | | ?????????????????????# # # W ### ### | | ?????????????????????###### # # #?# #?# | | ??????????????????????????# ## ####?#####?#### | | ??????????????????????????### #?????????????? | | ???????????????????????????## ####?????????????? | | ????????????????????????????# #????????????????? | | ????????????????????????????# #????????????????? | | ????????????????????????????# #????????????????? | | ????????????????????????????# #????????????????? | | ????????????????????????????# #????????????????? | | ????????????????????????????? ?????????????????? | | ?????????????????????????????????????????????????? | | ?????????????????????????????????????????????????? | | ?????????????????????????????????????????????????? | | ?????????????????????????????????????????????????? | | ?????????????????????????????????????????????????? | | ?????????????????????????????????????????????????? | | ?????????????????????????????????????????????????? | | ?????????????????????????????????????????????????? | | ?????????????????????????????????????????????????? | | ?????????????????????????????????????????????????? | +----------------------------------------------------+ Best States ------------- Heat Dissipation 169 Energy Generation 89 Energy Capacity 1865 Matter Stores 300 Matter Capacity 800 Sight Range 24 Robot Scan Range 20 Terrain Scan Range 24 Terrain Scan Density 210 Jamming Range 16 Cloak Strength 4 Power Amplification 40 Additional Mass Support 16 Armor Coverage 850 Resistance: TH 50 Core Shielding 90 Propulsion Shielding 90 Point Defense Rating 720 Projectile Deflection 15 Weapon Cycling 25 Melee Speed Boost 50 Phase Shifting 25 Evasion (%) 83 Targeting Accuracy 30 Melee Accuracy 12 Launcher Accuracy 40 Target Analysis 8 Core Analysis 16 Armor Integrity Analysis 50 Energy Filtering 50 Kinecelleration 66 Offensive Hacking 14 Item Schematics ----------------- Imp. Hover Unit | -9/Materials | Hacked Cmb. Airjet | -6/Factory | Scanalyzed Adv. Signal Interpreter | -6/Hub_04(d) | Hacked Assault Drone Bay | -5/Zhirov | Free Exp. Heat Sink | -5/Zhirov | Free Exp. Optical Array | -5/Zhirov | Free Imp. Arc Thrower | -5/Zhirov | Free CPS Tube | -4/Factory | Scanalyzed Quantum Reactor | -4/Factory | Hacked Hds. Centrium Leg | -2/Protoforge | Archive Electron Diverter | -2/Protoforge | Archive Nanosword | -2/Protoforge | Archive Exp. Propulsion Shielding | -2/Protoforge | Archive Enh. Force Rifle | -2/Protoforge | Archive Hvy. Proton Missile Launcher | -2/Protoforge | Archive Enh. Biometal Leg | -2/Protoforge | Archive Spectral Analyzer | -2/Protoforge | Archive Adv. KE Penetrator | -2/Protoforge | Archive Hvy. Proton Cannon | -2/Protoforge | Archive Exp. System Shield | -2/Protoforge | Archive Centrium Heavy Treads | -2/Protoforge | Archive Robot Schematics ------------------ T-07 Excavator | -2/Protoforge | Archive A-27 Freighter | -2/Protoforge | Archive Fabricated ------------ Adv. Launcher Guidance Computer | x2 | -6/Factory | Preloaded Lrn. Terrain Scanner | x2 | -5/Factory | Preloaded Cmb. Airjet | x2 | -5/Factory CPS Tube | x1 | -3/Proximity Caves Repaired ---------- Centrium Medium Armor Plating | 21% | -4/Factory Quantum Reactor | 38% | -4/Factory Weapon Mount | 56% | -4/Factory Quantum Reactor | 32% | -4/Factory Antigrav Array | 71% | -4/Factory Studied --------- Gravmag Array | -6/Factory | Hacked Cmb. Airjet | -5/Factory | Hacked Antigrav Array | -4/Factory | Hacked Cmb. Gravmag System | -3/Quarantine | Hacked Imp. Gyrokinetic Inverter | -3/Quarantine | Hacked Com. HERF Cannon | -3/Quarantine | Hacked Hvy. Rocket Launcher | -3/Quarantine | Hacked Cmb. Linear Gravjet | -2/Testing | Hacked Alien Tech Used ----------------- Integrated Dissipator Core Cannon High-powered Transdimensional Reconstructor Dimensional Node Initializer Subatomic Replicator Supercharged TR Concept Nanofilaments [Polyglass] Achievements -------------- Martial Artist Please No, No That Challenges ------------ None Game ------ Seed RecoilMolecularLauncher Manual? 0 Play Time 05:52:20 Cumulative 484.3 hours Start 2025.11.01 @ 02:10:29 End 2025.11.01 @ 08:25:14 Sessions 2 Manual Loads 0 Difficulty Rogue Special Mode None Game No. 259 Rogue 259 Adventurer 0 Explorer 0 Win Type - Total 21 Types 13/1/5/1/0/0/0/1/0/0 Lore% 93 Gallery% 86 Achievement% 77 Wizard Run 0 Options --------- Layout 2 ASCII 0 Keyboard 1 Movement Vi Keybinds 0 Fullscreen 1 Font 28/Terminus Map View 50x52 Zoom Use 0% Tactical HUD 1 Map Filters NONE Filters NONE Steam 1 RUN: a14ce87c-8265-43dc-a69a-485a8e38fba9